Body,Body Name,Date,Transaction Number,Invoice Number,Amount,Supplier Name,Supplier ID ,VAT Registration Number ,Expense Area,Expense Type,Expense Code,Purchase Order
http://statistics.data.gov.uk/id/local-authority/29UP,Tonbridge & Malling Borough Council,2/1/2023,0011045548/1,11045548, 3050.00,CAD Surveys Ltd,01877600,,Professional Fees,Land Review,D40PSTON144001,110069955
http://statistics.data.gov.uk/id/local-authority/29UP,Tonbridge & Malling Borough Council,2/1/2023,0011045552/1,11045552, 550.00,KD Drainage and Asbestos Ltd,01840800,335158603,BRREP Response - General,Angel Centre,M15HAP50001997,110069972
http://statistics.data.gov.uk/id/local-authority/29UP,Tonbridge & Malling Borough Council,2/1/2023,0011045561/3,11045561, 1001.25,Venn Group Ltd,00914300,,Temporary Staff,Legal Sals&Overheads,D01ARDR0011300,
http://statistics.data.gov.uk/id/local-authority/29UP,Tonbridge & Malling Borough Council,2/1/2023,0011045562/3,11045562, 190.81,LexisNexis UK,00016100,,Reference Books & Publications,Legal Sals&Overheads,D01ARDR0443010,
http://statistics.data.gov.uk/id/local-authority/29UP,Tonbridge & Malling Borough Council,2/1/2023,0011045562/4,11045562, 179.69,LexisNexis UK,00016100,,Reference Books & Publications,Legal Sals&Overheads,D01ARDR0443010,
http://statistics.data.gov.uk/id/local-authority/29UP,Tonbridge & Malling Borough Council,2/1/2023,0011045562/5,11045562, 7.00,LexisNexis UK,00016100,,Reference Books & Publications,Legal Sals&Overheads,D01ARDR0443010,
http://statistics.data.gov.uk/id/local-authority/29UP,Tonbridge & Malling Borough Council,2/1/2023,0011045563/3,11045563, 895.00,Cornerstones Barristers,01359100,,Other Planning Enq - Legal Cos,Legal Sals&Overheads,D01ARDR0044146,
http://statistics.data.gov.uk/id/local-authority/29UP,Tonbridge & Malling Borough Council,2/1/2023,0011045564/3,11045564, 349.25,Sellick Partnership Group Limited,01336800,,Temporary Staff,Legal Sals&Overheads,D01ARDR0011300,
http://statistics.data.gov.uk/id/local-authority/29UP,Tonbridge & Malling Borough Council,2/1/2023,0011045565/3,11045565, 1217.80,Sellick Partnership Group Limited,01336800,,Temporary Staff,Legal Sals&Overheads,D01ARDR0011300,
http://statistics.data.gov.uk/id/local-authority/29UP,Tonbridge & Malling Borough Council,2/1/2023,0011045566/3,11045566, 424.83,KH Recruitment Ltd,01738900,,Salaries & On Costs,Licences - Fee Paying,H27SH000015100,
http://statistics.data.gov.uk/id/local-authority/29UP,Tonbridge & Malling Borough Council,2/1/2023,0011045567/1,11045567, 2499.00,Project Salus,01494100,,Initiatives,UK Shared Prosperity Fund,D52TH000048135,
http://statistics.data.gov.uk/id/local-authority/29UP,Tonbridge & Malling Borough Council,2/1/2023,0011045568/3,11045568, 1426.76,The Oyster Partnership,01196400,,Temporary Staff,Admin & Prop Sals&Overheads,D01AADA1111300,
http://statistics.data.gov.uk/id/local-authority/29UP,Tonbridge & Malling Borough Council,2/1/2023,0011045569/3,11045569, 68.44,Royal Mail,00086200,,Postages - Business Reply,Electoral Registration,D31MF000045003,
http://statistics.data.gov.uk/id/local-authority/29UP,Tonbridge & Malling Borough Council,2/1/2023,0011045569/4,11045569, 21.46,Royal Mail,00086200,,Purchases,Business Reply Stock Account,K14AT000001002,
http://statistics.data.gov.uk/id/local-authority/29UP,Tonbridge & Malling Borough Council,2/1/2023,0011045570/3,11045570, 1480.60,The Oyster Partnership,01196400,,Temporary Staff,Admin & Prop Sals&Overheads,D01AADA1111300,
http://statistics.data.gov.uk/id/local-authority/29UP,Tonbridge & Malling Borough Council,2/1/2023,0011045571/3,11045571, 1507.52,The Oyster Partnership,01196400,,Temporary Staff,Admin & Prop Sals&Overheads,D01AADA1111300,
http://statistics.data.gov.uk/id/local-authority/29UP,Tonbridge & Malling Borough Council,2/1/2023,0011045572/3,11045572, 4626.21,KCS,00054200,,Electricity,Buildings,D21FEDD6021002,
http://statistics.data.gov.uk/id/local-authority/29UP,Tonbridge & Malling Borough Council,2/1/2023,0011045573/3,11045573, 8886.32,KCS,00054200,,Electricity,Buildings,D21FEDD1021002,
http://statistics.data.gov.uk/id/local-authority/29UP,Tonbridge & Malling Borough Council,2/1/2023,0011045574/3,11045574, 9238.86,KCS,00054200,,Electricity,Buildings,D21FEDD5021002,
http://statistics.data.gov.uk/id/local-authority/29UP,Tonbridge & Malling Borough Council,2/1/2023,0011045575/3,11045575, 225.30,KCS,00054200,,Estate Management Charge,Land Review,D40PS000020400,
http://statistics.data.gov.uk/id/local-authority/29UP,Tonbridge & Malling Borough Council,2/1/2023,0011045576/7,11045576, 194.52,KCS,00054200,,Estate Management Charge,Land Review,D40PS000020400,
http://statistics.data.gov.uk/id/local-authority/29UP,Tonbridge & Malling Borough Council,2/1/2023,0011045577/3,11045577, 740.25,Premier Paper Group,01421800,,Purchases - Paper,Printing,D22GA000040102,
http://statistics.data.gov.uk/id/local-authority/29UP,Tonbridge & Malling Borough Council,2/1/2023,0011045578/1,11045578, 105.80,Scottish Water Business Stream Ltd,01641100,,Sewerage Charges,Buildings,D21FEDD5024003,
http://statistics.data.gov.uk/id/local-authority/29UP,Tonbridge & Malling Borough Council,2/1/2023,0011045579/1,11045579, 57.50,Digital ID lTD,01687200,560627739,Purchases,Licences - Fee Paying,H27SH000040101,110070014
http://statistics.data.gov.uk/id/local-authority/29UP,Tonbridge & Malling Borough Council,2/1/2023,0011045579/2,11045579, 25.98,Digital ID lTD,01687200,560627739,Purchases,Licences - Fee Paying,H27SH000040101,110070014
http://statistics.data.gov.uk/id/local-authority/29UP,Tonbridge & Malling Borough Council,2/1/2023,0011045579/3,11045579, 8.95,Digital ID lTD,01687200,560627739,Purchases,Licences - Fee Paying,H27SH000040101,110070014
http://statistics.data.gov.uk/id/local-authority/29UP,Tonbridge & Malling Borough Council,2/1/2023,0011045580/1,11045580, 850.00,Envirocure Limited,00963300,,BRREP Legionella Certification,Gibson Building East,M15KGP30001995,110069800
http://statistics.data.gov.uk/id/local-authority/29UP,Tonbridge & Malling Borough Council,2/1/2023,0011045581/1,11045581, 750.00,Envirocure Limited,00963300,,BRREP Legionella Certification,Tonbridge Castle / CAB,M15KFP30001995,110069800
http://statistics.data.gov.uk/id/local-authority/29UP,Tonbridge & Malling Borough Council,2/1/2023,0011045582/1,11045582, 1687.00,Envirocure Limited,00963300,,BRREP Legionella Certification,Gibson Building West,M15KBP30001995,110069800
http://statistics.data.gov.uk/id/local-authority/29UP,Tonbridge & Malling Borough Council,2/1/2023,0011045583/1,11045583, 103.00,K T Fire Protection Ltd,00057000,,BRREP Servicing - FireAlarmSys,Tonbridge Farm Pavillion,M15HGP20001937,110069668
http://statistics.data.gov.uk/id/local-authority/29UP,Tonbridge & Malling Borough Council,2/1/2023,0011045584/1,11045584, 138.00,K T Fire Protection Ltd,00057000,,BRREP Servicing - FireAlarmSys,Gibson Building West,M15KBP20001937,110069664
http://statistics.data.gov.uk/id/local-authority/29UP,Tonbridge & Malling Borough Council,2/1/2023,0011045585/1,11045585, 380.70,K T Fire Protection Ltd,00057000,,BRREP Servicing - FireAlarmSys,Gibson Building East,M15KGP20001937,110069665
http://statistics.data.gov.uk/id/local-authority/29UP,Tonbridge & Malling Borough Council,2/1/2023,0011045586/1,11045586, 375.34,K T Fire Protection Ltd,00057000,,BRREP Servicing - FireAlarmSys,Angel Centre,M15HAP20001937,110069669
http://statistics.data.gov.uk/id/local-authority/29UP,Tonbridge & Malling Borough Council,2/1/2023,0011045587/1,11045587, 113.50,K T Fire Protection Ltd,00057000,,BRREP Servicing - FireAlarmSys,Leis Man Poult Wood Golf Centr,M15HEP20001937,110069667
http://statistics.data.gov.uk/id/local-authority/29UP,Tonbridge & Malling Borough Council,2/1/2023,0011045588/1,11045588, 47.96,KCS,00054200,,Cleaning & Domestic Supplies,Cleaning & Security,D21FDDD1026001,110069928
http://statistics.data.gov.uk/id/local-authority/29UP,Tonbridge & Malling Borough Council,2/1/2023,0011045589/1,11045589, 469.50,System Hygienics Ltd,00600300,,BRREP General Maintenance,Tonbridge Swimming Pool,M15HBP30001900,110069861
http://statistics.data.gov.uk/id/local-authority/29UP,Tonbridge & Malling Borough Council,2/1/2023,0011045589/2,11045589, 469.50,System Hygienics Ltd,00600300,,BRREP General Maintenance,Larkfield Leisure Centre,M15HDP30001900,110069861
http://statistics.data.gov.uk/id/local-authority/29UP,Tonbridge & Malling Borough Council,2/1/2023,0011045590/1,11045590, 175.00,PV Environmental Surveys,00987200,,BRREP Asbestos monitoring,Leis Man Poult Wood Golf Centr,M15HEP30001993,110069976
http://statistics.data.gov.uk/id/local-authority/29UP,Tonbridge & Malling Borough Council,2/1/2023,0011045591/1,11045591, 344.00,Glaze-Tech Services Ltd,00779500,,BRREP Response - General,Shops & Maisonettes,M15NAP50001997,110069910
http://statistics.data.gov.uk/id/local-authority/29UP,Tonbridge & Malling Borough Council,2/1/2023,0011045592/1,11045592, 750.00,SJC Door Security Installations,01278600,,Economic Development & Regen,Eco Dev & Reg Gen Bus Support,D52TD000047027,110069886
http://statistics.data.gov.uk/id/local-authority/29UP,Tonbridge & Malling Borough Council,2/1/2023,0011045593/1,11045593, 286.00,Record UK Ltd,01116900,,BRREP Servicing-entrance doors,Larkfield Leisure Centre,M15HDP20001927,110069954
http://statistics.data.gov.uk/id/local-authority/29UP,Tonbridge & Malling Borough Council,2/1/2023,0011045594/1,11045594, 460.00,G C Industrial Heating Services,00578100,,BRREP Servicing - boilers,Tonbridge Swimming Pool,M15HBP20001929,110069993
http://statistics.data.gov.uk/id/local-authority/29UP,Tonbridge & Malling Borough Council,2/1/2023,0011045595/1,11045595, 350.00,BML Building Services Ltd,01505000,,BRREP Hard paving surface rep,Tonbridge Swimming Pool,M15HBP20001946,110069994
http://statistics.data.gov.uk/id/local-authority/29UP,Tonbridge & Malling Borough Council,2/1/2023,0011045596/1,11045596, 178.00,NKM Fire Protection Ltd,01784600,,BRREP Servicing - FireAlarmSys,Tonbridge Swimming Pool,M15HBP20001937,110069626
http://statistics.data.gov.uk/id/local-authority/29UP,Tonbridge & Malling Borough Council,2/1/2023,0011045597/3,11045597, 120.00,G C Industrial Heating Services,00578100,,BRREP Response - General,Gibson Building West,M15KBP50001997,
http://statistics.data.gov.uk/id/local-authority/29UP,Tonbridge & Malling Borough Council,2/1/2023,0011045598/3,11045598, 250.00,BML Building Services Ltd,01505000,,BRREP Response - General,Larkfield Leisure Centre,M15HDP50001997,
http://statistics.data.gov.uk/id/local-authority/29UP,Tonbridge & Malling Borough Council,2/1/2023,0011045599/3,11045599, 150.00,BML Building Services Ltd,01505000,,BRREP Fence/Compound Repairs,Larkfield Leisure Centre,M15HDP20001945,
http://statistics.data.gov.uk/id/local-authority/29UP,Tonbridge & Malling Borough Council,2/1/2023,0011045600/3,11045600, 150.00,BML Building Services Ltd,01505000,,BRREP Response - General,Larkfield Leisure Centre,M15HDP50001997,
http://statistics.data.gov.uk/id/local-authority/29UP,Tonbridge & Malling Borough Council,2/1/2023,0011045601/3,11045601, 350.00,BML Building Services Ltd,01505000,,BRREP Window/door repairs,Larkfield Leisure Centre,M15HDP20001919,
http://statistics.data.gov.uk/id/local-authority/29UP,Tonbridge & Malling Borough Council,2/1/2023,0011045602/3,11045602, 240.00,G C Industrial Heating Services,00578100,,BRREP Servicing - Heating Syst,Angel Centre,M15HAP20001934,
http://statistics.data.gov.uk/id/local-authority/29UP,Tonbridge & Malling Borough Council,2/1/2023,0011045603/7,11045603, 1474.40,TMS Protection Ltd,01744300,,Office Security,Ton Castle Council Chamber,D21FC000044047,
http://statistics.data.gov.uk/id/local-authority/29UP,Tonbridge & Malling Borough Council,2/1/2023,0011045603/8,11045603, 2530.80,TMS Protection Ltd,01744300,,Office Security,Tonbridge Gateway,D23TG000044047,
http://statistics.data.gov.uk/id/local-authority/29UP,Tonbridge & Malling Borough Council,2/1/2023,0011045604/3,11045604, 3093.20,TMS Protection Ltd,01744300,,Office Security,Tonbridge Gateway,D23TG000044047,
http://statistics.data.gov.uk/id/local-authority/29UP,Tonbridge & Malling Borough Council,2/1/2023,0011045604/4,11045604, 1368.00,TMS Protection Ltd,01744300,,Office Security,Tonbridge Gateway,D23TG000044047,
http://statistics.data.gov.uk/id/local-authority/29UP,Tonbridge & Malling Borough Council,2/1/2023,0011045605/1,11045605, 237.00,BML Building Services Ltd,01505000,,BRREP Response - General,Tonbridge Castle / CAB,M15KFP50001997,110069960
http://statistics.data.gov.uk/id/local-authority/29UP,Tonbridge & Malling Borough Council,2/1/2023,0011045606/1,11045606, 1248.00,BML Building Services Ltd,01505000,,BRREP General Maintenance,Larkfield Leisure Centre,M15HDP10001900,110069965
http://statistics.data.gov.uk/id/local-authority/29UP,Tonbridge & Malling Borough Council,2/1/2023,0011045607/1,11045607, 786.53,County Clean Environmental Services Ltd,01881000,214946601,BRREP LeybourneCP SewageDigest,Leybourne Lakes Country Park,M15HLP20001961,110070002
http://statistics.data.gov.uk/id/local-authority/29UP,Tonbridge & Malling Borough Council,2/1/2023,0011045608/1,11045608, 150.00,BML Building Services Ltd,01505000,,BRREP Response - General,Tonbridge Castle / CAB,M15KFP50001997,110069958
http://statistics.data.gov.uk/id/local-authority/29UP,Tonbridge & Malling Borough Council,2/1/2023,0011045609/1,11045609, 1217.80,Sellick Partnership Group Limited,01336800,,Temporary Staff,Legal Sals&Overheads,D01ARDR0011300,
http://statistics.data.gov.uk/id/local-authority/29UP,Tonbridge & Malling Borough Council,2/1/2023,0011045610/1,11045610, 942.00,Thomson Snell & Passmore,00101700,,Legal Fees,Legal Sals&Overheads,D01ARDR0044002,
http://statistics.data.gov.uk/id/local-authority/29UP,Tonbridge & Malling Borough Council,2/1/2023,0011045611/1,11045611, 3000.00,Cornerstones Barristers,01359100,,Legal Fees,Legal Sals&Overheads,D01ARDR0044002,
http://statistics.data.gov.uk/id/local-authority/29UP,Tonbridge & Malling Borough Council,2/1/2023,0011045612/1,11045612, 680.00,Stats-Search Ltd - Utility Searches,01838900,309362310,Professional Fees,Land Review,D40PSTON144001,110069556
http://statistics.data.gov.uk/id/local-authority/29UP,Tonbridge & Malling Borough Council,2/1/2023,0011045613/1,11045613, 343.45,Extinguisher Doctor Ltd,00059500,,BRREP Servicing-FireExtinguish,Tonbridge Castle / CAB,M15KFP20001938,110070024
http://statistics.data.gov.uk/id/local-authority/29UP,Tonbridge & Malling Borough Council,2/1/2023,0011045614/1,11045614, 2499.00,Ember Youth,01884800,,Initiatives,UK Shared Prosperity Fund,D52TH000048135,
http://statistics.data.gov.uk/id/local-authority/29UP,Tonbridge & Malling Borough Council,2/1/2023,0012008612/1,12008612, 494.00,Dataquest Ltd - CC Engineering Limited,01233100,438498209,Maintenance - Ancillary Equip,Information Technology,D27KD000040137,410032338
http://statistics.data.gov.uk/id/local-authority/29UP,Tonbridge & Malling Borough Council,2/1/2023,0012008613/1,12008613, 10064.40,Idox Software Ltd,00962400,,Software Hire & Support,Information Technology,D27KD000044059,410032327
http://statistics.data.gov.uk/id/local-authority/29UP,Tonbridge & Malling Borough Council,2/1/2023,0012008613/2,12008613, 1193.81,Idox Software Ltd,00962400,,Software Hire & Support,Information Technology,D27KD000044059,410032327
http://statistics.data.gov.uk/id/local-authority/29UP,Tonbridge & Malling Borough Council,2/1/2023,0012008613/3,12008613, 8098.31,Idox Software Ltd,00962400,,Software Hire & Support,Information Technology,D27KD000044059,410032327
http://statistics.data.gov.uk/id/local-authority/29UP,Tonbridge & Malling Borough Council,2/1/2023,0012008614/1,12008614, 792.71,NEC Software Solutions UK Ltd,01073900,202159745,Software Hire & Support,Information Technology,D27KD000044059,
http://statistics.data.gov.uk/id/local-authority/29UP,Tonbridge & Malling Borough Council,2/1/2023,0012008615/1,12008615, 126.99,CCS Media Ltd,00018000,,Purchases,St Scene & Leis Sals&Overheads,D01AGDG3040101,410032341
http://statistics.data.gov.uk/id/local-authority/29UP,Tonbridge & Malling Borough Council,2/1/2023,0012008615/2,12008615, 2.00,CCS Media Ltd,00018000,,Purchases,St Scene & Leis Sals&Overheads,D01AGDG3040101,410032341
http://statistics.data.gov.uk/id/local-authority/29UP,Tonbridge & Malling Borough Council,2/1/2023,0021038372/1,21038372, 996.00,Office Monster,01866400,173260030,Initial Furniture & Equipment,Capital Renewals Leisure,P05KGBC0109906,210057000
http://statistics.data.gov.uk/id/local-authority/29UP,Tonbridge & Malling Borough Council,2/1/2023,0021038373/1,21038373, 105.00,Leybourne Lake Watersports Centre,01735000,,Partnership Fees,Youth Partnerships,B33PG000044048,210056998
http://statistics.data.gov.uk/id/local-authority/29UP,Tonbridge & Malling Borough Council,2/1/2023,0021038374/1,21038374, 1150.00,GI Carpets Ltd,00953500,,Initial Furniture & Equipment,Capital Renewals Leisure,P05KGBC0209906,210057059
http://statistics.data.gov.uk/id/local-authority/29UP,Tonbridge & Malling Borough Council,2/1/2023,0021038376/1,21038376, 46.63,Royal British Legion Industries Ltd,00139700,,Purchases,Haysden Country Park,B22LC000040101,210057099
http://statistics.data.gov.uk/id/local-authority/29UP,Tonbridge & Malling Borough Council,2/1/2023,0021038378/1,21038378, 24.43,Scottish Water Business Stream Ltd,01641100,,Sewerage Charges,Cemetery,B26MP000024003,
http://statistics.data.gov.uk/id/local-authority/29UP,Tonbridge & Malling Borough Council,2/1/2023,0021038379/1,21038379, 200.00,Blackbox AV Ltd,01791400,,Maintenance of Grounds,Sports Grounds,B13ET000020402,210057056
http://statistics.data.gov.uk/id/local-authority/29UP,Tonbridge & Malling Borough Council,2/1/2023,0021038380/1,21038380, 407.00,Rumwoods Limited,00959000,,Initiatives,Climate Change,D47SA000048135,210057081
http://statistics.data.gov.uk/id/local-authority/29UP,Tonbridge & Malling Borough Council,2/1/2023,0021038381/1,21038381, 220.00,Rumwoods Limited,00959000,,Tree Planting Schemes,Countryside/Woodland Mgt,B22LH000020405,210057083
http://statistics.data.gov.uk/id/local-authority/29UP,Tonbridge & Malling Borough Council,2/1/2023,0021038381/2,21038381, 25.00,Rumwoods Limited,00959000,,Tree Planting Schemes,Countryside/Woodland Mgt,B22LH000020405,210057083
http://statistics.data.gov.uk/id/local-authority/29UP,Tonbridge & Malling Borough Council,2/1/2023,0021038382/1,21038382, 85.00,Rumwoods Limited,00959000,,Tree Planting Schemes,Countryside/Woodland Mgt,B22LH000020405,210057079
http://statistics.data.gov.uk/id/local-authority/29UP,Tonbridge & Malling Borough Council,2/1/2023,0021038382/2,21038382, 195.00,Rumwoods Limited,00959000,,Tree Planting Schemes,Countryside/Woodland Mgt,B22LH000020405,210057079
http://statistics.data.gov.uk/id/local-authority/29UP,Tonbridge & Malling Borough Council,2/1/2023,0021038382/3,21038382, 25.00,Rumwoods Limited,00959000,,Tree Planting Schemes,Countryside/Woodland Mgt,B22LH000020405,210057079
http://statistics.data.gov.uk/id/local-authority/29UP,Tonbridge & Malling Borough Council,2/1/2023,0021038383/1,21038383, 1074.17,Rumwoods Limited,00959000,,Tree Planting Schemes,Countryside/Woodland Mgt,B22LH000020405,210057077
http://statistics.data.gov.uk/id/local-authority/29UP,Tonbridge & Malling Borough Council,2/1/2023,0021038383/2,21038383, 114.00,Rumwoods Limited,00959000,,Tree Planting Schemes,Countryside/Woodland Mgt,B22LH000020405,210057077
http://statistics.data.gov.uk/id/local-authority/29UP,Tonbridge & Malling Borough Council,2/1/2023,0022027359/1,22027359, 2467.00,Simply Rented Ltd ,01691400,,Temporary Accommodation,Homelessness,C01AA000044051,
http://statistics.data.gov.uk/id/local-authority/29UP,Tonbridge & Malling Borough Council,2/1/2023,0022027397/1,22027397, 743.55,Golding Homes Limited,01275200,,Homelessness Reduction Initiat,Homelessness,C01AA000048019,
http://statistics.data.gov.uk/id/local-authority/29UP,Tonbridge & Malling Borough Council,2/1/2023,0022027398/10,22027398, 72.20,Urbaser LTD,01718800,,Maintenance of Grounds,Leybourne Lakes Country Park,B22LK000020402,
http://statistics.data.gov.uk/id/local-authority/29UP,Tonbridge & Malling Borough Council,2/1/2023,0022027398/11,22027398, 26.13,Urbaser LTD,01718800,,Dog Bin Emptying,Leybourne Lakes Country Park,B22LK000044012,
http://statistics.data.gov.uk/id/local-authority/29UP,Tonbridge & Malling Borough Council,2/1/2023,0022027398/12,22027398, 60.22,Urbaser LTD,01718800,,Maintenance of Grounds,Grounds,D21FF000020402,
http://statistics.data.gov.uk/id/local-authority/29UP,Tonbridge & Malling Borough Council,2/1/2023,0022027398/13,22027398, 184.19,Urbaser LTD,01718800,,Maintenance of Grounds,Parking Off-Street,E10HA000020402,
http://statistics.data.gov.uk/id/local-authority/29UP,Tonbridge & Malling Borough Council,2/1/2023,0022027398/14,22027398, 4686.59,Urbaser LTD,01718800,,Maintenance of Grounds,Parking Off-Street,E10HAE00120402,
http://statistics.data.gov.uk/id/local-authority/29UP,Tonbridge & Malling Borough Council,2/1/2023,0022027398/15,22027398, 504.84,Urbaser LTD,01718800,,Maintenance of Grounds,Parking Off-Street,E10HAE00220402,
http://statistics.data.gov.uk/id/local-authority/29UP,Tonbridge & Malling Borough Council,2/1/2023,0022027398/16,22027398, 315.82,Urbaser LTD,01718800,,Maintenance of Grounds,Parking Off-Street,E10HAE00320402,
http://statistics.data.gov.uk/id/local-authority/29UP,Tonbridge & Malling Borough Council,2/1/2023,0022027398/17,22027398, 1651.73,Urbaser LTD,01718800,,Maintenance of Grounds,Parking Off-Street,E10HAE00420402,
http://statistics.data.gov.uk/id/local-authority/29UP,Tonbridge & Malling Borough Council,2/1/2023,0022027398/18,22027398, 274.48,Urbaser LTD,01718800,,Maintenance of Grounds,Parking Off-Street,E10HAE00520402,
http://statistics.data.gov.uk/id/local-authority/29UP,Tonbridge & Malling Borough Council,2/1/2023,0022027398/19,22027398, 1023.71,Urbaser LTD,01718800,,Maintenance of Grounds,Parking Off-Street,E10HAE00620402,
http://statistics.data.gov.uk/id/local-authority/29UP,Tonbridge & Malling Borough Council,2/1/2023,0022027398/20,22027398, 8.63,Urbaser LTD,01718800,,Maintenance of Grounds,Parking Off-Street,E10HAE00820402,
http://statistics.data.gov.uk/id/local-authority/29UP,Tonbridge & Malling Borough Council,2/1/2023,0022027398/21,22027398, 8.52,Urbaser LTD,01718800,,Maintenance of Grounds,Parking Off-Street,E10HAE00920402,
http://statistics.data.gov.uk/id/local-authority/29UP,Tonbridge & Malling Borough Council,2/1/2023,0022027398/22,22027398, 20.23,Urbaser LTD,01718800,,Maintenance of Grounds,Parking Off-Street,E10HAE01020402,
http://statistics.data.gov.uk/id/local-authority/29UP,Tonbridge & Malling Borough Council,2/1/2023,0022027398/23,22027398, 96.12,Urbaser LTD,01718800,,Maintenance of Grounds,Parking Off-Street,E10HAE01120402,
http://statistics.data.gov.uk/id/local-authority/29UP,Tonbridge & Malling Borough Council,2/1/2023,0022027398/24,22027398, 60.48,Urbaser LTD,01718800,,Maintenance of Grounds,Parking Off-Street,E10HAE01220402,
http://statistics.data.gov.uk/id/local-authority/29UP,Tonbridge & Malling Borough Council,2/1/2023,0022027398/25,22027398, 1146.81,Urbaser LTD,01718800,,Maintenance of Grounds,Parking Off-Street,E10HAE01320402,
http://statistics.data.gov.uk/id/local-authority/29UP,Tonbridge & Malling Borough Council,2/1/2023,0022027398/26,22027398, 87.22,Urbaser LTD,01718800,,Maintenance of Grounds,Parking Off-Street,E10HAE01420402,
http://statistics.data.gov.uk/id/local-authority/29UP,Tonbridge & Malling Borough Council,2/1/2023,0022027398/27,22027398, 268.78,Urbaser LTD,01718800,,Maintenance of Grounds,Parking Off-Street,E10HAE01520402,
http://statistics.data.gov.uk/id/local-authority/29UP,Tonbridge & Malling Borough Council,2/1/2023,0022027398/28,22027398, 289.08,Urbaser LTD,01718800,,Maintenance of Grounds,Parking Off-Street,E10HAE01620402,
http://statistics.data.gov.uk/id/local-authority/29UP,Tonbridge & Malling Borough Council,2/1/2023,0022027398/29,22027398, 853.41,Urbaser LTD,01718800,,Maintenance of Grounds,Parking Off-Street,E10HAE01720402,
http://statistics.data.gov.uk/id/local-authority/29UP,Tonbridge & Malling Borough Council,2/1/2023,0022027398/3,22027398, 387.37,Urbaser LTD,01718800,,Maintenance of Grounds,Sports Grounds,B13ET000020402,
http://statistics.data.gov.uk/id/local-authority/29UP,Tonbridge & Malling Borough Council,2/1/2023,0022027398/30,22027398, 244.95,Urbaser LTD,01718800,,Maintenance of Grounds,Parking Off-Street,E10HAE01920402,
http://statistics.data.gov.uk/id/local-authority/29UP,Tonbridge & Malling Borough Council,2/1/2023,0022027398/31,22027398, 538.07,Urbaser LTD,01718800,,Maintenance of Grounds,Parking Off-Street,E10HAE02020402,
http://statistics.data.gov.uk/id/local-authority/29UP,Tonbridge & Malling Borough Council,2/1/2023,0022027398/32,22027398, 18.68,Urbaser LTD,01718800,,Maintenance of Grounds,Parking Off-Street,E10HAE02120402,
http://statistics.data.gov.uk/id/local-authority/29UP,Tonbridge & Malling Borough Council,2/1/2023,0022027398/33,22027398, 123.00,Urbaser LTD,01718800,,Maintenance of Grounds,Parking Off-Street,E10HAE02220402,
http://statistics.data.gov.uk/id/local-authority/29UP,Tonbridge & Malling Borough Council,2/1/2023,0022027398/34,22027398, 1034.02,Urbaser LTD,01718800,,Maintenance of Grounds,Parking Off-Street,E10HAE02320402,
http://statistics.data.gov.uk/id/local-authority/29UP,Tonbridge & Malling Borough Council,2/1/2023,0022027398/35,22027398, 2.67,Urbaser LTD,01718800,,Maintenance of Grounds,Parking Off-Street,E10HAE02720402,
http://statistics.data.gov.uk/id/local-authority/29UP,Tonbridge & Malling Borough Council,2/1/2023,0022027398/36,22027398, 375.72,Urbaser LTD,01718800,,Maintenance of Grounds,Parking Off-Street,E10HAE02820402,
http://statistics.data.gov.uk/id/local-authority/29UP,Tonbridge & Malling Borough Council,2/1/2023,0022027398/37,22027398, 6.77,Urbaser LTD,01718800,,Maintenance of Grounds,Parking Off-Street,E10HAE02920402,
http://statistics.data.gov.uk/id/local-authority/29UP,Tonbridge & Malling Borough Council,2/1/2023,0022027398/38,22027398, 39.82,Urbaser LTD,01718800,,Maintenance of Grounds,Parking Off-Street,E10HAE03020402,
http://statistics.data.gov.uk/id/local-authority/29UP,Tonbridge & Malling Borough Council,2/1/2023,0022027398/39,22027398, 33.88,Urbaser LTD,01718800,,Maintenance of Grounds,Parking Off-Street,E10HAE03120402,
http://statistics.data.gov.uk/id/local-authority/29UP,Tonbridge & Malling Borough Council,2/1/2023,0022027398/4,22027398, 82.44,Urbaser LTD,01718800,,Maintenance of Grounds,Poult Wood Golf Centre,B21KE000020402,
http://statistics.data.gov.uk/id/local-authority/29UP,Tonbridge & Malling Borough Council,2/1/2023,0022027398/40,22027398, 718.40,Urbaser LTD,01718800,,Maintenance of Grounds,Parking Off-Street,E10HAE04020402,
http://statistics.data.gov.uk/id/local-authority/29UP,Tonbridge & Malling Borough Council,2/1/2023,0022027398/41,22027398, 498.26,Urbaser LTD,01718800,,Maintenance of Grounds,Parking Off-Street,E10HAE04220402,
http://statistics.data.gov.uk/id/local-authority/29UP,Tonbridge & Malling Borough Council,2/1/2023,0022027398/42,22027398, 1430.15,Urbaser LTD,01718800,,Maintenance of Grounds,Parking Off-Street,E10HAE04520402,
http://statistics.data.gov.uk/id/local-authority/29UP,Tonbridge & Malling Borough Council,2/1/2023,0022027398/43,22027398, 92676.10,Urbaser LTD,01718800,,Contract Payments,Refuse Collection,H20SA000054001,
http://statistics.data.gov.uk/id/local-authority/29UP,Tonbridge & Malling Borough Council,2/1/2023,0022027398/44,22027398, 946.15,Urbaser LTD,01718800,,Responsible Dog Ownership,Street Scene,H23SD000044050,
http://statistics.data.gov.uk/id/local-authority/29UP,Tonbridge & Malling Borough Council,2/1/2023,0022027398/45,22027398, 56523.64,Urbaser LTD,01718800,,Contract Payments,Street Scene,H23SD000054001,
http://statistics.data.gov.uk/id/local-authority/29UP,Tonbridge & Malling Borough Council,2/1/2023,0022027398/46,22027398, 356.30,Urbaser LTD,01718800,,General Maintenance,Dry Recycling,H34SR000020301,
http://statistics.data.gov.uk/id/local-authority/29UP,Tonbridge & Malling Borough Council,2/1/2023,0022027398/47,22027398, 84198.36,Urbaser LTD,01718800,,Contract Payments,Dry Recycling,H34SR000054001,
http://statistics.data.gov.uk/id/local-authority/29UP,Tonbridge & Malling Borough Council,2/1/2023,0022027398/48,22027398, 32945.93,Urbaser LTD,01718800,,Contract Payments,Food Recycling,H34SS000054001,
http://statistics.data.gov.uk/id/local-authority/29UP,Tonbridge & Malling Borough Council,2/1/2023,0022027398/49,22027398, 17888.09,Urbaser LTD,01718800,,Contract Payments,Garden Waste Recycling,H34ST000054001,
http://statistics.data.gov.uk/id/local-authority/29UP,Tonbridge & Malling Borough Council,2/1/2023,0022027398/5,22027398, 34.02,Urbaser LTD,01718800,,Maintenance of Grounds,Haysden Country Park,B22LC000020402,
http://statistics.data.gov.uk/id/local-authority/29UP,Tonbridge & Malling Borough Council,2/1/2023,0022027398/6,22027398, 26.13,Urbaser LTD,01718800,,Dog Bin Emptying,Haysden Country Park,B22LC000044012,
http://statistics.data.gov.uk/id/local-authority/29UP,Tonbridge & Malling Borough Council,2/1/2023,0022027398/7,22027398, 740.63,Urbaser LTD,01718800,,Maintenance of Grounds,Open Spaces & Amenity Areas,B22LE000020402,
http://statistics.data.gov.uk/id/local-authority/29UP,Tonbridge & Malling Borough Council,2/1/2023,0022027398/8,22027398, 13.93,Urbaser LTD,01718800,,Dog Bin Emptying,Open Spaces & Amenity Areas,B22LE000044012,
http://statistics.data.gov.uk/id/local-authority/29UP,Tonbridge & Malling Borough Council,2/1/2023,0022027398/9,22027398, 24.04,Urbaser LTD,01718800,,Maintenance of Grounds,Countryside/Woodland Mgt,B22LG000020402,
http://statistics.data.gov.uk/id/local-authority/29UP,Tonbridge & Malling Borough Council,2/1/2023,0022027399/3,22027399, 490.00,Countrystyle Group,00835900,781981681,Collection of Card,Dry Recycling,H34SR000054008,
http://statistics.data.gov.uk/id/local-authority/29UP,Tonbridge & Malling Borough Council,2/1/2023,0022027400/1,22027400, 7391.11,REDACTED PERSONAL DATA,01638600,,Other Expenses,Disabled Facilities Grant Mand,P03AC000009908,
http://statistics.data.gov.uk/id/local-authority/29UP,Tonbridge & Malling Borough Council,2/1/2023,0022027401/1,22027401, 3.00,Tonbridge & Malling Borough Council,00103700,,Other Expenses,Disabled Facilities Grant Mand,P03AC000009908,
http://statistics.data.gov.uk/id/local-authority/29UP,Tonbridge & Malling Borough Council,2/1/2023,0022027402/3,22027402, 14.42,REDACTED PERSONAL DATA,01705500,,Purchases,Refuse Collection,H20SA000040101,
http://statistics.data.gov.uk/id/local-authority/29UP,Tonbridge & Malling Borough Council,2/1/2023,0022027403/1,22027403, 17598.24,Straight Manufacturing Ltd,01029400,,Initial Furniture & Equipment,Green Waste Bin Growth/Replace,P02BC000009906,220003285
http://statistics.data.gov.uk/id/local-authority/29UP,Tonbridge & Malling Borough Council,2/1/2023,0022027404/3,22027404, 325.00,Monitor Pest Control Ltd,01476700,,Other Expenses,Pest Control,H24SE000048010,
http://statistics.data.gov.uk/id/local-authority/29UP,Tonbridge & Malling Borough Council,2/1/2023,0022027405/1,22027405, 4800.00,Connells Residential Lettings,01668100,,Temporary Accommodation,Homelessness,C01AASYRI44051,
http://statistics.data.gov.uk/id/local-authority/29UP,Tonbridge & Malling Borough Council,2/1/2023,0022027409/1,22027409, 150.00,BML Building Services Ltd,01505000,,Repairs & Mtce to Buildings,Homelessness,C01AA000020101,
http://statistics.data.gov.uk/id/local-authority/29UP,Tonbridge & Malling Borough Council,2/1/2023,0022027410/1,22027410, 1975.00,Blackbox AV Ltd,01791400,,Maintenance of Grounds,Sports Grounds,B13ET000020402,
http://statistics.data.gov.uk/id/local-authority/29UP,Tonbridge & Malling Borough Council,2/1/2023,0022027411/1,22027411, 4294.00,Hubbard & Houghton Construction Ltd,00970600,,Other Expenses,Disabled Facilities Grant Mand,P03AC000009908,
http://statistics.data.gov.uk/id/local-authority/29UP,Tonbridge & Malling Borough Council,2/1/2023,0022027412/3,22027412, 180.00,ATEM Electrical Limited,01883000,,Repairs & Mtce to Buildings,Homelessness,C01AA000020101,
http://statistics.data.gov.uk/id/local-authority/29UP,Tonbridge & Malling Borough Council,2/1/2023,0031019218/3,31019218, 44.54,REDACTED PERSONAL DATA,01344100,,Purchases,Parking Off-Street,E10HA000040101,
http://statistics.data.gov.uk/id/local-authority/29UP,Tonbridge & Malling Borough Council,2/1/2023,0031019218/4,31019218, 99.98,REDACTED PERSONAL DATA,01344100,,Purchases,Parking Off-Street,E10HA000040101,
http://statistics.data.gov.uk/id/local-authority/29UP,Tonbridge & Malling Borough Council,2/1/2023,0031019221/1,31019221, 3361.60,HEREF Tonbridge Ltd,01518900,,Pay to Principal - Botany CP,Parking Off-Street,E10HA000044197,
http://statistics.data.gov.uk/id/local-authority/29UP,Tonbridge & Malling Borough Council,2/1/2023,0031019222/3,31019222, 3868.80,CDER Group,01773300,,Adjudication & Enforcement Ser,Parking Off-Street,E10HA000044230,
http://statistics.data.gov.uk/id/local-authority/29UP,Tonbridge & Malling Borough Council,2/1/2023,0031019223/3,31019223, 3.50,Kings Hill Garage Ltd,01546300,,Transport Repair & Maintenance,Parking Off-Street,E10HA000030103,
http://statistics.data.gov.uk/id/local-authority/29UP,Tonbridge & Malling Borough Council,2/1/2023,0031019223/4,31019223, 40.42,Kings Hill Garage Ltd,01546300,,Transport Repair & Maintenance,Parking Off-Street,E10HA000030103,
http://statistics.data.gov.uk/id/local-authority/29UP,Tonbridge & Malling Borough Council,2/1/2023,0031019225/2,31019225, 1045.45,PSR Lighting & Signs Ltd,01265400,,Premises Repairs & Maintenance,Parking Off-Street,E10HA000020601,320003440
http://statistics.data.gov.uk/id/local-authority/29UP,Tonbridge & Malling Borough Council,2/1/2023,0031019225/3,31019225, 522.73,PSR Lighting & Signs Ltd,01265400,,BRREP Servicing - ext lighting,Leis Man Poult Wood Golf Centr,M15HEP20001941,320003440
http://statistics.data.gov.uk/id/local-authority/29UP,Tonbridge & Malling Borough Council,2/1/2023,0031019225/4,31019225, 522.73,PSR Lighting & Signs Ltd,01265400,,BRREP Servicing - ext lighting,Tonbridge Castle / CAB,M15KFP20001941,320003440
http://statistics.data.gov.uk/id/local-authority/29UP,Tonbridge & Malling Borough Council,2/1/2023,0031019226/1,31019226, 1039.20,Patrol,01189800,,Adjudication & Enforcement Ser,Parking Off-Street,E10HA000044230,
http://statistics.data.gov.uk/id/local-authority/29UP,Tonbridge & Malling Borough Council,2/1/2023,0031019227/1,31019227, 160.65,KM Media Group Ltd,00053900,,Advertising General,Parking Off-Street,E10HA000044216,310042942
http://statistics.data.gov.uk/id/local-authority/29UP,Tonbridge & Malling Borough Council,2/1/2023,0031019229/1,31019229, 531.18,DSSL Group Ltd,01839500,,CCTV Monitoring Station,Security Services Management,E09GA000051020,310042873
http://statistics.data.gov.uk/id/local-authority/29UP,Tonbridge & Malling Borough Council,2/1/2023,0031019230/1,31019230, 531.18,DSSL Group Ltd,01839500,,CCTV Monitoring Station,Security Services Management,E09GA000051020,310042874
http://statistics.data.gov.uk/id/local-authority/29UP,Tonbridge & Malling Borough Council,2/1/2023,0031019231/1,31019231, 347.50,Archway Highway Services Ltd,01398000,,Premises Repairs & Maintenance,Parking Off-Street,E10HA000020601,310042961
http://statistics.data.gov.uk/id/local-authority/29UP,Tonbridge & Malling Borough Council,2/1/2023,0031019232/1,31019232, 487.00,Archway Highway Services Ltd,01398000,,Premises Repairs & Maintenance,Parking On-Street,E10HD000020601,310042938
http://statistics.data.gov.uk/id/local-authority/29UP,Tonbridge & Malling Borough Council,2/1/2023,0032010036/3,32010036, 910.00,Seymour & Saunders Electrical Ltd,01500300,467735604,Competent Persons Schemes,Building Control,A01AD000048116,
http://statistics.data.gov.uk/id/local-authority/29UP,Tonbridge & Malling Borough Council,2/1/2023,0032010037/3,32010037, 1609.50,G2 Recruitment Solutions,01786000,,Temporary Staff,Planning Sals&Overheads,D01AJDJ0111300,
http://statistics.data.gov.uk/id/local-authority/29UP,Tonbridge & Malling Borough Council,2/1/2023,0032010038/3,32010038, 5180.00,G2 Recruitment Solutions,01786000,,Temporary Staff,Planning Sals&Overheads,D01AJDJ0111300,
http://statistics.data.gov.uk/id/local-authority/29UP,Tonbridge & Malling Borough Council,2/1/2023,0032010041/1,32010041, 22.95,Posturite UK Ltd,00970300,,Purchases,Planning Sals&Overheads,D01AJDJ0240101,320003479
http://statistics.data.gov.uk/id/local-authority/29UP,Tonbridge & Malling Borough Council,2/1/2023,0032010041/2,32010041, 161.56,Posturite UK Ltd,00970300,,Purchases,Planning Sals&Overheads,D01AJDJ0240101,320003479
http://statistics.data.gov.uk/id/local-authority/29UP,Tonbridge & Malling Borough Council,2/1/2023,0032010042/1,32010042, 3200.00,Robinson Escott Planning LLP,01653000,,Application & Appeals,Development Management,A01AB000044194,320003327
http://statistics.data.gov.uk/id/local-authority/29UP,Tonbridge & Malling Borough Council,2/1/2023,0032010043/1,32010043, 16.47,KCS,00054200,,Stationery,Planning Sals&Overheads,D01AJDJ0143003,320003487
http://statistics.data.gov.uk/id/local-authority/29UP,Tonbridge & Malling Borough Council,2/1/2023,0032010043/2,32010043, 2.92,KCS,00054200,,Stationery,Planning Sals&Overheads,D01AJDJ0143003,320003487
http://statistics.data.gov.uk/id/local-authority/29UP,Tonbridge & Malling Borough Council,2/1/2023,0032010044/1,32010044, 200.00,Environment Agency,00418100,,Development of Local Plan,Development of Local Plan,A01AE000044023,320003400
http://statistics.data.gov.uk/id/local-authority/29UP,Tonbridge & Malling Borough Council,2/1/2023,0032010045/3,32010045, 1612.50,Carrington West Limited,01844500,,Temporary Staff,Planning Sals&Overheads,D01AJDJ0111300,
http://statistics.data.gov.uk/id/local-authority/29UP,Tonbridge & Malling Borough Council,2/1/2023,0032010046/1,32010046, 1366.23,Scottish Water Business Stream Ltd,01641100,,Sewerage Charges,Public Conveniences,H22SCH01024003,
http://statistics.data.gov.uk/id/local-authority/29UP,Tonbridge & Malling Borough Council,2/1/2023,0032010047/1,32010047, 235.62,KM Media Group Ltd,00053900,,Advertising General,Development Management,A01ABZ99944216,320003475
http://statistics.data.gov.uk/id/local-authority/29UP,Tonbridge & Malling Borough Council,2/1/2023,0032010048/1,32010048, 9800.00,Guy Portelli,00383900,,Contract Payments,UK Shared Prosperity Fund,P06FNFN2009904,
http://statistics.data.gov.uk/id/local-authority/29UP,Tonbridge & Malling Borough Council,2/1/2023,0032010049/1,32010049, 246.00,British Geological Survey (NERC),00514200,,Subscriptions,Planning Sals&Overheads,D01AJDJ0147002,320003480
http://statistics.data.gov.uk/id/local-authority/29UP,Tonbridge & Malling Borough Council,2/1/2023,0041035140/1,41035140, 385.00,Integra User Group Ltd,00533100,,Subscriptions,Finance Sals&Overheads,D01AFDF0247002,
http://statistics.data.gov.uk/id/local-authority/29UP,Tonbridge & Malling Borough Council,2/1/2023,0041035141/3,41035141, 556.60,Morgan Hunt UK Ltd,01086900,,Temporary Staff,Finance Sals&Overheads,D01AFDF1111300,
http://statistics.data.gov.uk/id/local-authority/29UP,Tonbridge & Malling Borough Council,2/1/2023,0041035145/3,41035145, 4719.95,Maidstone Borough Council,01173700,,Bailiffs Commission,Local Revenue & NNDR Collect,D41QA000044075,
http://statistics.data.gov.uk/id/local-authority/29UP,Tonbridge & Malling Borough Council,2/1/2023,0041035146/3,41035146, 1302.23,Rundle & Co Ltd,00087200,,Bailiffs Commission,Local Revenue & NNDR Collect,D41QA000044075,
http://statistics.data.gov.uk/id/local-authority/29UP,Tonbridge & Malling Borough Council,2/1/2023,0041035147/3,41035147, 878.73,Rundle & Co Ltd,00087200,,Bailiffs Commission,Local Revenue & NNDR Collect,D41QA000044075,
http://statistics.data.gov.uk/id/local-authority/29UP,Tonbridge & Malling Borough Council,2/1/2023,0041035149/1,41035149, 305.00,Swale Borough Council,00119200,,Purchases,Finance Sals&Overheads,D01AFDF1140101,410032325
http://statistics.data.gov.uk/id/local-authority/29UP,Tonbridge & Malling Borough Council,2/1/2023,0051008773/3,51008773, 15.00,Specialist Cheesemakers Association,01884400,830442067,Ext Fees/Prof & Tech,Training,D10DCDV0113561,
http://statistics.data.gov.uk/id/local-authority/29UP,Tonbridge & Malling Borough Council,2/1/2023,0051008775/3,51008775, 130.00,The Institute of Licensing (Events),01463600,,Ext Fees/Prof & Tech,Training,D10DCDR0413561,
http://statistics.data.gov.uk/id/local-authority/29UP,Tonbridge & Malling Borough Council,2/6/2023,0041035160/3,41035160, 14.45,National Westminster Bank Plc,00894500,,Purchases,Planning Sals&Overheads,D01AJDJ0140101,
http://statistics.data.gov.uk/id/local-authority/29UP,Tonbridge & Malling Borough Council,2/6/2023,0041035160/4,41035160, 0.84,National Westminster Bank Plc,00894500,,Ext Fees/Prof & Tech,Training,D10DCDA1213561,
http://statistics.data.gov.uk/id/local-authority/29UP,Tonbridge & Malling Borough Council,2/6/2023,0041035160/5,41035160, 288.00,National Westminster Bank Plc,00894500,,Ext Fees/Prof & Tech,Training,D10DCDB0013561,
http://statistics.data.gov.uk/id/local-authority/29UP,Tonbridge & Malling Borough Council,2/6/2023,0041035160/6,41035160, 9.81,National Westminster Bank Plc,00894500,,Software Hire & Support,Information Technology,D27KD000044059,
http://statistics.data.gov.uk/id/local-authority/29UP,Tonbridge & Malling Borough Council,2/6/2023,0041035160/7,41035160, 9.00,National Westminster Bank Plc,00894500,,Information & Publicity,Information & Publicity,D32MJ000044076,
http://statistics.data.gov.uk/id/local-authority/29UP,Tonbridge & Malling Borough Council,2/6/2023,0041035160/8,41035160, 191.62,National Westminster Bank Plc,00894500,,Stationery,Parking Off-Street,E10HA000043003,
http://statistics.data.gov.uk/id/local-authority/29UP,Tonbridge & Malling Borough Council,2/6/2023,0041035161/1,41035161, 15.00,BNP Paribas,01360500,,Bank Charges,Banking Arrangements,D43QK000044222,
http://statistics.data.gov.uk/id/local-authority/29UP,Tonbridge & Malling Borough Council,2/7/2023,0041035173/1,41035173, 15.00,BNP Paribas,01360500,,Bank Charges,Banking Arrangements,D43QK000044222,
http://statistics.data.gov.uk/id/local-authority/29UP,Tonbridge & Malling Borough Council,2/8/2023,0011045208/1,11045208, 355.00,Southern Lightning Engineers Ltd,00094000,,BRREP Servicing-Lightning Prot,Angel Centre,M15HAP20001942,110069811
http://statistics.data.gov.uk/id/local-authority/29UP,Tonbridge & Malling Borough Council,2/8/2023,0011045616/1,11045616, 3063.75,Blue Allium HR Ltd,01883400,,Legal Fees,Legal Sals&Overheads,D01ARDR0044002,
http://statistics.data.gov.uk/id/local-authority/29UP,Tonbridge & Malling Borough Council,2/8/2023,0011045617/1,11045617, 1862.67,GSF SANDYLIGHT LTD,01705300,,Temporary Staff,Admin & Prop Sals&Overheads,D01AADA0511300,
http://statistics.data.gov.uk/id/local-authority/29UP,Tonbridge & Malling Borough Council,2/8/2023,0011045618/1,11045618, 21.81,Oasis Group  - Box-It South East,00966800,931579211,Purchases,Electoral Registration,D31MF000040101,
http://statistics.data.gov.uk/id/local-authority/29UP,Tonbridge & Malling Borough Council,2/8/2023,0011045619/1,11045619, 570.00,Disclosure & Barring Service,00865900,,Professional Fees,Licences - Fee Paying,H27SH000044001,
http://statistics.data.gov.uk/id/local-authority/29UP,Tonbridge & Malling Borough Council,2/8/2023,0011045620/1,11045620, 160.25,Premier Paper Group,01421800,,Purchases - Paper,Printing,D22GA000040102,
http://statistics.data.gov.uk/id/local-authority/29UP,Tonbridge & Malling Borough Council,2/8/2023,0011045621/1,11045621, 193.27,Biffa Waste Services Ltd,01284500,,Trade Refuse Charges,Cleaning & Security,D21FD000044008,
http://statistics.data.gov.uk/id/local-authority/29UP,Tonbridge & Malling Borough Council,2/8/2023,0011045622/1,11045622, 106.50,Biffa Waste Services Ltd,01284500,,Trade Refuse Charges,Cleaning & Security,D21FD000044008,
http://statistics.data.gov.uk/id/local-authority/29UP,Tonbridge & Malling Borough Council,2/8/2023,0011045623/1,11045623, 175.70,Biffa Waste Services Ltd,01284500,,Trade Refuse Charges,Cleaning & Security,D21FD000044008,
http://statistics.data.gov.uk/id/local-authority/29UP,Tonbridge & Malling Borough Council,2/8/2023,0011045624/1,11045624, 48.72,Biffa Waste Services Ltd,01284500,,Trade Refuse Charges,Cleaning & Security,D21FD000044008,
http://statistics.data.gov.uk/id/local-authority/29UP,Tonbridge & Malling Borough Council,2/8/2023,0011045625/1,11045625, 48.72,Biffa Waste Services Ltd,01284500,,Trade Refuse Charges,Cleaning & Security,D21FD000044008,
http://statistics.data.gov.uk/id/local-authority/29UP,Tonbridge & Malling Borough Council,2/8/2023,0011045626/1,11045626, 208.50,Biffa Waste Services Ltd,01284500,,Trade Refuse Charges,Cleaning & Security,D21FD000044008,
http://statistics.data.gov.uk/id/local-authority/29UP,Tonbridge & Malling Borough Council,2/8/2023,0011045627/1,11045627, 1534.44,The Oyster Partnership,01196400,,Temporary Staff,Admin & Prop Sals&Overheads,D01AADA1111300,
http://statistics.data.gov.uk/id/local-authority/29UP,Tonbridge & Malling Borough Council,2/8/2023,0011045628/1,11045628, 150.00,BML Building Services Ltd,01505000,,BRREP Response - General,Larkfield Leisure Centre,M15HDP50001997,
http://statistics.data.gov.uk/id/local-authority/29UP,Tonbridge & Malling Borough Council,2/8/2023,0011045629/1,11045629, 4230.00,Spatial Dimensions Sevenoaks Office,01880900,,Professional Fees,Land Review,D40PSTON144001,110070001
http://statistics.data.gov.uk/id/local-authority/29UP,Tonbridge & Malling Borough Council,2/8/2023,0011045630/1,11045630, 2231.00,DORMA UK Ltd,00413500,549361128,BRREP Servicing-entrance doors,Angel Centre,M15HAP20001927,110070039
http://statistics.data.gov.uk/id/local-authority/29UP,Tonbridge & Malling Borough Council,2/8/2023,0011045631/1,11045631, 850.00,BML Building Services Ltd,01505000,,BRREP Gutter Cleaning,Angel Centre,M15HAP20001947,110070020
http://statistics.data.gov.uk/id/local-authority/29UP,Tonbridge & Malling Borough Council,2/8/2023,0011045631/10,11045631, 675.00,BML Building Services Ltd,01505000,,BRREP Gutter Cleaning,Tonbridge Castle / CAB,M15KFP20001947,110070020
http://statistics.data.gov.uk/id/local-authority/29UP,Tonbridge & Malling Borough Council,2/8/2023,0011045631/11,11045631, 625.00,BML Building Services Ltd,01505000,,BRREP Gutter Cleaning,Gibson Building East,M15KGP20001947,110070020
http://statistics.data.gov.uk/id/local-authority/29UP,Tonbridge & Malling Borough Council,2/8/2023,0011045631/2,11045631, 650.00,BML Building Services Ltd,01505000,,BRREP Gutter Cleaning,Tonbridge Swimming Pool,M15HBP20001947,110070020
http://statistics.data.gov.uk/id/local-authority/29UP,Tonbridge & Malling Borough Council,2/8/2023,0011045631/3,11045631, 950.00,BML Building Services Ltd,01505000,,BRREP Gutter Cleaning,Larkfield Leisure Centre,M15HDP20001947,110070020
http://statistics.data.gov.uk/id/local-authority/29UP,Tonbridge & Malling Borough Council,2/8/2023,0011045631/4,11045631, 825.00,BML Building Services Ltd,01505000,,BRREP Gutter Cleaning,Leis Man Poult Wood Golf Centr,M15HEP20001947,110070020
http://statistics.data.gov.uk/id/local-authority/29UP,Tonbridge & Malling Borough Council,2/8/2023,0011045631/5,11045631, 150.00,BML Building Services Ltd,01505000,,BRREP Gutter Cleaning,Tonbridge Farm Pavillion,M15HGP20001947,110070020
http://statistics.data.gov.uk/id/local-authority/29UP,Tonbridge & Malling Borough Council,2/8/2023,0011045631/6,11045631, 225.00,BML Building Services Ltd,01505000,,BRREP Gutter Cleaning,Pleasure Grounds & Open Spaces,M15HHP20001947,110070020
http://statistics.data.gov.uk/id/local-authority/29UP,Tonbridge & Malling Borough Council,2/8/2023,0011045631/7,11045631, 150.00,BML Building Services Ltd,01505000,,BRREP Gutter Cleaning,Pleasure Grounds & Open Spaces,M15HHP20001947,110070020
http://statistics.data.gov.uk/id/local-authority/29UP,Tonbridge & Malling Borough Council,2/8/2023,0011045631/8,11045631, 150.00,BML Building Services Ltd,01505000,,BRREP Gutter Cleaning,Tonbridge Cemetery,M15HJP20001947,110070020
http://statistics.data.gov.uk/id/local-authority/29UP,Tonbridge & Malling Borough Council,2/8/2023,0011045631/9,11045631, 625.00,BML Building Services Ltd,01505000,,BRREP Gutter Cleaning,Gibson Building West,M15KBP20001947,110070020
http://statistics.data.gov.uk/id/local-authority/29UP,Tonbridge & Malling Borough Council,2/8/2023,0011045632/1,11045632, 6121.00,BML Building Services Ltd,01505000,,Repairs & Mtce to Buildings,Homelessness,C01AATNHS20101,110069917
http://statistics.data.gov.uk/id/local-authority/29UP,Tonbridge & Malling Borough Council,2/8/2023,0011045634/1,11045634, 994.00,H20 Servicing Limited,00888800,808041553,BRREP General Maintenance,Larkfield Leisure Centre,M15HDP10001900,110070030
http://statistics.data.gov.uk/id/local-authority/29UP,Tonbridge & Malling Borough Council,2/8/2023,0011045635/1,11045635, 375.00,BML Building Services Ltd,01505000,,BRREP Response - General,Angel Centre,M15HAP50001997,
http://statistics.data.gov.uk/id/local-authority/29UP,Tonbridge & Malling Borough Council,2/8/2023,0011045636/1,11045636, 841.28,Glaze-Tech Services Ltd,00779500,,BRREP Window/door repairs,Tonbridge Swimming Pool,M15HBP20001919,110069902
http://statistics.data.gov.uk/id/local-authority/29UP,Tonbridge & Malling Borough Council,2/8/2023,0011045637/1,11045637, 225.00,Lemon Drainage Services LTD,01761600,,BRREP Servicing - Pumping Stn,Pleasure Grounds & Open Spaces,M15HHP20001931,110069460
http://statistics.data.gov.uk/id/local-authority/29UP,Tonbridge & Malling Borough Council,2/8/2023,0011045638/1,11045638, 210.00,Atac Solutions LTD,01558800,,BRREP LeybourneCP SewageDigest,Leybourne Lakes Country Park,M15HLP20001961,
http://statistics.data.gov.uk/id/local-authority/29UP,Tonbridge & Malling Borough Council,2/8/2023,0011045638/2,11045638, 85.00,Atac Solutions LTD,01558800,,BRREP LeybourneCP SewageDigest,Leybourne Lakes Country Park,M15HLP20001961,
http://statistics.data.gov.uk/id/local-authority/29UP,Tonbridge & Malling Borough Council,2/8/2023,0011045641/2,11045641, 2190.00,Thomson Snell & Passmore,00101700,,Legal Fees,Legal Sals&Overheads,D01ARDR0044002,
http://statistics.data.gov.uk/id/local-authority/29UP,Tonbridge & Malling Borough Council,2/8/2023,0011045642/1,11045642, 1217.80,Sellick Partnership Group Limited,01336800,,Temporary Staff,Legal Sals&Overheads,D01ARDR0011300,
http://statistics.data.gov.uk/id/local-authority/29UP,Tonbridge & Malling Borough Council,2/8/2023,0011045643/1,11045643, 804.00,Thomson Snell & Passmore,00101700,,Legal Fees,Legal Sals&Overheads,D01ARDR0044002,
http://statistics.data.gov.uk/id/local-authority/29UP,Tonbridge & Malling Borough Council,2/8/2023,0011045644/1,11045644, 1762.35,Royal Mail,00086200,,Purchases,Mailsort Stock Account,K37BR000001002,
http://statistics.data.gov.uk/id/local-authority/29UP,Tonbridge & Malling Borough Council,2/8/2023,0011045644/2,11045644, 6.72,Royal Mail,00086200,,Purchases,Mailsort Stock Account,K37BR000001002,
http://statistics.data.gov.uk/id/local-authority/29UP,Tonbridge & Malling Borough Council,2/8/2023,0011045644/3,11045644, 1.75,Royal Mail,00086200,,Purchases,Mailsort Stock Account,K37BR000001002,
http://statistics.data.gov.uk/id/local-authority/29UP,Tonbridge & Malling Borough Council,2/8/2023,0012008593/3,12008593, 130.63,KCS,00054200,,Leasing Charges,Multi Function Devices,D22GB000044038,
http://statistics.data.gov.uk/id/local-authority/29UP,Tonbridge & Malling Borough Council,2/8/2023,0012008593/4,12008593, 29.43,KCS,00054200,,Leasing Charges,Multi Function Devices,D22GB000044038,
http://statistics.data.gov.uk/id/local-authority/29UP,Tonbridge & Malling Borough Council,2/8/2023,0012008616/1,12008616, 28.46,Phoenix Software Ltd,00077400,755349015,Software Hire & Support,Information Technology,D27KD000044059,410032339
http://statistics.data.gov.uk/id/local-authority/29UP,Tonbridge & Malling Borough Council,2/8/2023,0012008616/2,12008616, 10.00,Phoenix Software Ltd,00077400,755349015,Delivery Expenses,Information Technology,D27KD000044069,410032339
http://statistics.data.gov.uk/id/local-authority/29UP,Tonbridge & Malling Borough Council,2/8/2023,0012008617/1,12008617, 16.94,Esendex Limited,01008900,,Leased Lines & Modems,Information Technology,D27KD000045011,
http://statistics.data.gov.uk/id/local-authority/29UP,Tonbridge & Malling Borough Council,2/8/2023,0012008619/1,12008619, 8.15,Daisy Communications,01068100,,Telephones - Rentals,General Admin Telephones,D24GT000045005,
http://statistics.data.gov.uk/id/local-authority/29UP,Tonbridge & Malling Borough Council,2/8/2023,0012008619/2,12008619, 285.76,Daisy Communications,01068100,,Telephones - Call Costs,General Admin Telephones,D24GT000045006,
http://statistics.data.gov.uk/id/local-authority/29UP,Tonbridge & Malling Borough Council,2/8/2023,0012008619/3,12008619, 95.92,Daisy Communications,01068100,,Leased Lines & Modems,Information Technology,D27KD000045011,
http://statistics.data.gov.uk/id/local-authority/29UP,Tonbridge & Malling Borough Council,2/8/2023,0012008619/4,12008619, 74.46,Daisy Communications,01068100,,Maintenance - General,Security Services Management,E09GA000040135,
http://statistics.data.gov.uk/id/local-authority/29UP,Tonbridge & Malling Borough Council,2/8/2023,0012008620/1,12008620, 23.60,Get It Repaired,01631300,287357752,Maintenance - General,Parking Off-Street,E10HA000040135,410032340
http://statistics.data.gov.uk/id/local-authority/29UP,Tonbridge & Malling Borough Council,2/8/2023,0012008620/2,12008620, 35.40,Get It Repaired,01631300,287357752,Maintenance - General,Parking On-Street,E10HD000040135,410032340
http://statistics.data.gov.uk/id/local-authority/29UP,Tonbridge & Malling Borough Council,2/8/2023,0012008621/1,12008621, 1563.51,NTT Cloud Communications UK Ltd,01794600,,Software Hire & Support,Information Technology,D27KD000044059,
http://statistics.data.gov.uk/id/local-authority/29UP,Tonbridge & Malling Borough Council,2/8/2023,0012008622/1,12008622, 500.00,Sectigo Limited - European Office,01214500,,Software Hire & Support,Information Technology,D27KD000044059,410032342
http://statistics.data.gov.uk/id/local-authority/29UP,Tonbridge & Malling Borough Council,2/8/2023,0012008623/1,12008623, 633.00,TwoFold Limited,00518000,,Maintenance - Ancillary Equip,Information Technology,D27KD000040137,
http://statistics.data.gov.uk/id/local-authority/29UP,Tonbridge & Malling Borough Council,2/8/2023,0012008624/1,12008624, 556.60,Morgan Hunt UK Ltd,01086900,,Temporary Staff,Finance Sals&Overheads,D01AFDF1111300,
http://statistics.data.gov.uk/id/local-authority/29UP,Tonbridge & Malling Borough Council,2/8/2023,0021038385/1,21038385, 2505.00,Mitsubishi Chemical Advanced Materials,01870300,639821314,Initial Furniture & Equipment,Capital Renewals Leisure,P05KGBC0409906,210057028
http://statistics.data.gov.uk/id/local-authority/29UP,Tonbridge & Malling Borough Council,2/8/2023,0021038386/1,21038386, 1216.08,JJ Martin (Catering Appliance Superstore,01884700,179505141,Initial Furniture & Equipment,Capital Renewals Leisure,P05KGBC0309906,210057113
http://statistics.data.gov.uk/id/local-authority/29UP,Tonbridge & Malling Borough Council,2/8/2023,0021038387/1,21038387, 544.98,G.L. & R.G. Bourne,00737500,,Gates / Security,Haysden Country Park,B22LC000044017,210056722
http://statistics.data.gov.uk/id/local-authority/29UP,Tonbridge & Malling Borough Council,2/8/2023,0021038388/1,21038388, 4995.00,Arnold Tarmac Ltd,01685100,,Maintenance of Grounds,Sports Grounds,B13ET000020402,210057035
http://statistics.data.gov.uk/id/local-authority/29UP,Tonbridge & Malling Borough Council,2/8/2023,0021038389/1,21038389, 650.00,SWS Countryside & Landscape,01567200,,Health & Safety - Trees,Countryside/Woodland Mgt,B22LG000044045,210057091
http://statistics.data.gov.uk/id/local-authority/29UP,Tonbridge & Malling Borough Council,2/8/2023,0021038389/2,21038389, 200.00,SWS Countryside & Landscape,01567200,,Health & Safety - Trees,Countryside/Woodland Mgt,B22LG000044045,210057091
http://statistics.data.gov.uk/id/local-authority/29UP,Tonbridge & Malling Borough Council,2/8/2023,0021038389/3,21038389, 200.00,SWS Countryside & Landscape,01567200,,Health & Safety - Trees,Countryside/Woodland Mgt,B22LG000044045,210057091
http://statistics.data.gov.uk/id/local-authority/29UP,Tonbridge & Malling Borough Council,2/8/2023,0021038389/4,21038389, 500.00,SWS Countryside & Landscape,01567200,,Health & Safety - Trees,Countryside/Woodland Mgt,B22LG000044045,210057091
http://statistics.data.gov.uk/id/local-authority/29UP,Tonbridge & Malling Borough Council,2/8/2023,0021038390/1,21038390, 800.00,SWS Countryside & Landscape,01567200,,BRREP General Maintenance,Land Review,M15MAP49901900,210057094
http://statistics.data.gov.uk/id/local-authority/29UP,Tonbridge & Malling Borough Council,2/8/2023,0021038391/1,21038391, 4300.00,SWS Countryside & Landscape,01567200,,Health & Safety - Trees,Countryside/Woodland Mgt,B22LG000044045,210057090
http://statistics.data.gov.uk/id/local-authority/29UP,Tonbridge & Malling Borough Council,2/8/2023,0021038392/1,21038392, 120.00,SWS Countryside & Landscape,01567200,,Health & Safety - Trees,Countryside/Woodland Mgt,B22LG000044045,210057098
http://statistics.data.gov.uk/id/local-authority/29UP,Tonbridge & Malling Borough Council,2/8/2023,0021038392/2,21038392, 350.00,SWS Countryside & Landscape,01567200,,Health & Safety - Trees,Countryside/Woodland Mgt,B22LG000044045,210057098
http://statistics.data.gov.uk/id/local-authority/29UP,Tonbridge & Malling Borough Council,2/8/2023,0021038392/3,21038392, 2100.00,SWS Countryside & Landscape,01567200,,Health & Safety - Trees,Countryside/Woodland Mgt,B22LG000044045,210057098
http://statistics.data.gov.uk/id/local-authority/29UP,Tonbridge & Malling Borough Council,2/8/2023,0021038393/1,21038393, 225.00,SWS Countryside & Landscape,01567200,,Health & Safety - Trees,Countryside/Woodland Mgt,B22LG000044045,210057022
http://statistics.data.gov.uk/id/local-authority/29UP,Tonbridge & Malling Borough Council,2/8/2023,0021038394/1,21038394, 325.00,SWS Countryside & Landscape,01567200,,Health & Safety - Trees,Countryside/Woodland Mgt,B22LG000044045,210056932
http://statistics.data.gov.uk/id/local-authority/29UP,Tonbridge & Malling Borough Council,2/8/2023,0021038395/1,21038395, 550.00,SWS Countryside & Landscape,01567200,,Health & Safety - Trees,Countryside/Woodland Mgt,B22LG000044045,210056751
http://statistics.data.gov.uk/id/local-authority/29UP,Tonbridge & Malling Borough Council,2/8/2023,0021038396/1,21038396, 242.00,SWS Countryside & Landscape,01567200,,Maintenance of Grounds,Haysden Country Park,B22LC000020402,210057010
http://statistics.data.gov.uk/id/local-authority/29UP,Tonbridge & Malling Borough Council,2/8/2023,0021038397/1,21038397, 200.00,SWS Countryside & Landscape,01567200,,Health & Safety - Trees,Countryside/Woodland Mgt,B22LG000044045,
http://statistics.data.gov.uk/id/local-authority/29UP,Tonbridge & Malling Borough Council,2/8/2023,0021038398/3,21038398, 250.00,SWS Countryside & Landscape,01567200,,Health & Safety - Trees,Countryside/Woodland Mgt,B22LG000044045,
http://statistics.data.gov.uk/id/local-authority/29UP,Tonbridge & Malling Borough Council,2/8/2023,0021038399/1,21038399, 600.00,SWS Countryside & Landscape,01567200,,Health & Safety - Trees,Countryside/Woodland Mgt,B22LG000044045,210057108
http://statistics.data.gov.uk/id/local-authority/29UP,Tonbridge & Malling Borough Council,2/8/2023,0021038400/3,21038400, 225.00,SWS Countryside & Landscape,01567200,,Health & Safety - Trees,Countryside/Woodland Mgt,B22LG000044045,
http://statistics.data.gov.uk/id/local-authority/29UP,Tonbridge & Malling Borough Council,2/8/2023,0021038401/3,21038401, 550.00,SWS Countryside & Landscape,01567200,,Health & Safety - Trees,Countryside/Woodland Mgt,B22LG000044045,
http://statistics.data.gov.uk/id/local-authority/29UP,Tonbridge & Malling Borough Council,2/8/2023,0021038402/1,21038402, 550.00,SWS Countryside & Landscape,01567200,,Tonbridge Christmas Lighting,Eco Dev & Reg Ton Chris Light,D52TF000047015,210057088
http://statistics.data.gov.uk/id/local-authority/29UP,Tonbridge & Malling Borough Council,2/8/2023,0021038403/1,21038403, 150.00,SWS Countryside & Landscape,01567200,,Health & Safety - Trees,Countryside/Woodland Mgt,B22LG000044045,210057093
http://statistics.data.gov.uk/id/local-authority/29UP,Tonbridge & Malling Borough Council,2/8/2023,0021038405/1,21038405, 30.00,Weddle and Co,00714900,,Purchases,Haysden Country Park,B22LC000040101,210057102
http://statistics.data.gov.uk/id/local-authority/29UP,Tonbridge & Malling Borough Council,2/8/2023,0021038406/3,21038406, 90.87,KCC - L.A.S.E.R Commercial Services ,00184300,,Electricity,Open Spaces & Amenity Areas,B22LE000021002,
http://statistics.data.gov.uk/id/local-authority/29UP,Tonbridge & Malling Borough Council,2/8/2023,0021038407/1,21038407, 74.71,G.L. & R.G. Bourne,00737500,,Gates / Security,Haysden Country Park,B22LC000044017,210056722
http://statistics.data.gov.uk/id/local-authority/29UP,Tonbridge & Malling Borough Council,2/8/2023,0021038408/1,21038408, 135.00,Mr A Nicholl,00253500,,Casual Users,Tonbridge Sports Association,B02AH000034003,
http://statistics.data.gov.uk/id/local-authority/29UP,Tonbridge & Malling Borough Council,2/8/2023,0021038408/2,21038408, 60.00,Mr A Nicholl,00253500,,Stationery,Tonbridge Sports Association,B02AH000043003,
http://statistics.data.gov.uk/id/local-authority/29UP,Tonbridge & Malling Borough Council,2/8/2023,0021038408/3,21038408, 15.00,Mr A Nicholl,00253500,,Telephones - General,Tonbridge Sports Association,B02AH000045010,
http://statistics.data.gov.uk/id/local-authority/29UP,Tonbridge & Malling Borough Council,2/8/2023,0021038409/1,21038409, 1360.00,Weddle and Co,00714900,,Purchases,Tonbridge Castle Grounds,B22LB000040101,210057112
http://statistics.data.gov.uk/id/local-authority/29UP,Tonbridge & Malling Borough Council,2/8/2023,0021038410/1,21038410, 35.00,Weddle and Co,00714900,,Maintenance of Grounds,Open Spaces & Amenity Areas,B22LE000020402,210057110
http://statistics.data.gov.uk/id/local-authority/29UP,Tonbridge & Malling Borough Council,2/8/2023,0021038411/1,21038411, 563.20,Wrotham Traders,01124900,,Borough Christmas Lighting,Eco Dev & Reg Boro Chris Light,D52TE000047014,
http://statistics.data.gov.uk/id/local-authority/29UP,Tonbridge & Malling Borough Council,2/8/2023,0022027165/1,22027165, 387.37,Urbaser LTD,01718800,,Maintenance of Grounds,Sports Grounds,B13ET000020402,
http://statistics.data.gov.uk/id/local-authority/29UP,Tonbridge & Malling Borough Council,2/8/2023,0022027165/10,22027165, 60.22,Urbaser LTD,01718800,,Maintenance of Grounds,Grounds,D21FF000020402,
http://statistics.data.gov.uk/id/local-authority/29UP,Tonbridge & Malling Borough Council,2/8/2023,0022027165/11,22027165, 184.19,Urbaser LTD,01718800,,Maintenance of Grounds,Parking Off-Street,E10HA000020402,
http://statistics.data.gov.uk/id/local-authority/29UP,Tonbridge & Malling Borough Council,2/8/2023,0022027165/12,22027165, 4686.59,Urbaser LTD,01718800,,Maintenance of Grounds,Parking Off-Street,E10HAE00120402,
http://statistics.data.gov.uk/id/local-authority/29UP,Tonbridge & Malling Borough Council,2/8/2023,0022027165/13,22027165, 504.84,Urbaser LTD,01718800,,Maintenance of Grounds,Parking Off-Street,E10HAE00220402,
http://statistics.data.gov.uk/id/local-authority/29UP,Tonbridge & Malling Borough Council,2/8/2023,0022027165/14,22027165, 315.82,Urbaser LTD,01718800,,Maintenance of Grounds,Parking Off-Street,E10HAE00320402,
http://statistics.data.gov.uk/id/local-authority/29UP,Tonbridge & Malling Borough Council,2/8/2023,0022027165/15,22027165, 1651.73,Urbaser LTD,01718800,,Maintenance of Grounds,Parking Off-Street,E10HAE00420402,
http://statistics.data.gov.uk/id/local-authority/29UP,Tonbridge & Malling Borough Council,2/8/2023,0022027165/16,22027165, 274.48,Urbaser LTD,01718800,,Maintenance of Grounds,Parking Off-Street,E10HAE00520402,
http://statistics.data.gov.uk/id/local-authority/29UP,Tonbridge & Malling Borough Council,2/8/2023,0022027165/17,22027165, 1023.71,Urbaser LTD,01718800,,Maintenance of Grounds,Parking Off-Street,E10HAE00620402,
http://statistics.data.gov.uk/id/local-authority/29UP,Tonbridge & Malling Borough Council,2/8/2023,0022027165/18,22027165, 8.63,Urbaser LTD,01718800,,Maintenance of Grounds,Parking Off-Street,E10HAE00820402,
http://statistics.data.gov.uk/id/local-authority/29UP,Tonbridge & Malling Borough Council,2/8/2023,0022027165/19,22027165, 8.52,Urbaser LTD,01718800,,Maintenance of Grounds,Parking Off-Street,E10HAE00920402,
http://statistics.data.gov.uk/id/local-authority/29UP,Tonbridge & Malling Borough Council,2/8/2023,0022027165/2,22027165, 82.44,Urbaser LTD,01718800,,Maintenance of Grounds,Poult Wood Golf Centre,B21KE000020402,
http://statistics.data.gov.uk/id/local-authority/29UP,Tonbridge & Malling Borough Council,2/8/2023,0022027165/20,22027165, 20.23,Urbaser LTD,01718800,,Maintenance of Grounds,Parking Off-Street,E10HAE01020402,
http://statistics.data.gov.uk/id/local-authority/29UP,Tonbridge & Malling Borough Council,2/8/2023,0022027165/21,22027165, 96.12,Urbaser LTD,01718800,,Maintenance of Grounds,Parking Off-Street,E10HAE01120402,
http://statistics.data.gov.uk/id/local-authority/29UP,Tonbridge & Malling Borough Council,2/8/2023,0022027165/22,22027165, 60.48,Urbaser LTD,01718800,,Maintenance of Grounds,Parking Off-Street,E10HAE01220402,
http://statistics.data.gov.uk/id/local-authority/29UP,Tonbridge & Malling Borough Council,2/8/2023,0022027165/23,22027165, 1146.81,Urbaser LTD,01718800,,Maintenance of Grounds,Parking Off-Street,E10HAE01320402,
http://statistics.data.gov.uk/id/local-authority/29UP,Tonbridge & Malling Borough Council,2/8/2023,0022027165/24,22027165, 87.22,Urbaser LTD,01718800,,Maintenance of Grounds,Parking Off-Street,E10HAE01420402,
http://statistics.data.gov.uk/id/local-authority/29UP,Tonbridge & Malling Borough Council,2/8/2023,0022027165/25,22027165, 268.78,Urbaser LTD,01718800,,Maintenance of Grounds,Parking Off-Street,E10HAE01520402,
http://statistics.data.gov.uk/id/local-authority/29UP,Tonbridge & Malling Borough Council,2/8/2023,0022027165/26,22027165, 289.08,Urbaser LTD,01718800,,Maintenance of Grounds,Parking Off-Street,E10HAE01620402,
http://statistics.data.gov.uk/id/local-authority/29UP,Tonbridge & Malling Borough Council,2/8/2023,0022027165/27,22027165, 853.41,Urbaser LTD,01718800,,Maintenance of Grounds,Parking Off-Street,E10HAE01720402,
http://statistics.data.gov.uk/id/local-authority/29UP,Tonbridge & Malling Borough Council,2/8/2023,0022027165/28,22027165, 244.95,Urbaser LTD,01718800,,Maintenance of Grounds,Parking Off-Street,E10HAE01920402,
http://statistics.data.gov.uk/id/local-authority/29UP,Tonbridge & Malling Borough Council,2/8/2023,0022027165/29,22027165, 538.07,Urbaser LTD,01718800,,Maintenance of Grounds,Parking Off-Street,E10HAE02020402,
http://statistics.data.gov.uk/id/local-authority/29UP,Tonbridge & Malling Borough Council,2/8/2023,0022027165/3,22027165, 34.02,Urbaser LTD,01718800,,Maintenance of Grounds,Haysden Country Park,B22LC000020402,
http://statistics.data.gov.uk/id/local-authority/29UP,Tonbridge & Malling Borough Council,2/8/2023,0022027165/30,22027165, 18.68,Urbaser LTD,01718800,,Maintenance of Grounds,Parking Off-Street,E10HAE02120402,
http://statistics.data.gov.uk/id/local-authority/29UP,Tonbridge & Malling Borough Council,2/8/2023,0022027165/31,22027165, 123.00,Urbaser LTD,01718800,,Maintenance of Grounds,Parking Off-Street,E10HAE02220402,
http://statistics.data.gov.uk/id/local-authority/29UP,Tonbridge & Malling Borough Council,2/8/2023,0022027165/32,22027165, 1034.02,Urbaser LTD,01718800,,Maintenance of Grounds,Parking Off-Street,E10HAE02320402,
http://statistics.data.gov.uk/id/local-authority/29UP,Tonbridge & Malling Borough Council,2/8/2023,0022027165/33,22027165, 2.67,Urbaser LTD,01718800,,Maintenance of Grounds,Parking Off-Street,E10HAE02720402,
http://statistics.data.gov.uk/id/local-authority/29UP,Tonbridge & Malling Borough Council,2/8/2023,0022027165/34,22027165, 375.72,Urbaser LTD,01718800,,Maintenance of Grounds,Parking Off-Street,E10HAE02820402,
http://statistics.data.gov.uk/id/local-authority/29UP,Tonbridge & Malling Borough Council,2/8/2023,0022027165/35,22027165, 6.77,Urbaser LTD,01718800,,Maintenance of Grounds,Parking Off-Street,E10HAE02920402,
http://statistics.data.gov.uk/id/local-authority/29UP,Tonbridge & Malling Borough Council,2/8/2023,0022027165/36,22027165, 39.82,Urbaser LTD,01718800,,Maintenance of Grounds,Parking Off-Street,E10HAE03020402,
http://statistics.data.gov.uk/id/local-authority/29UP,Tonbridge & Malling Borough Council,2/8/2023,0022027165/37,22027165, 33.88,Urbaser LTD,01718800,,Maintenance of Grounds,Parking Off-Street,E10HAE03120402,
http://statistics.data.gov.uk/id/local-authority/29UP,Tonbridge & Malling Borough Council,2/8/2023,0022027165/38,22027165, 718.40,Urbaser LTD,01718800,,Maintenance of Grounds,Parking Off-Street,E10HAE04020402,
http://statistics.data.gov.uk/id/local-authority/29UP,Tonbridge & Malling Borough Council,2/8/2023,0022027165/39,22027165, 498.26,Urbaser LTD,01718800,,Maintenance of Grounds,Parking Off-Street,E10HAE04220402,
http://statistics.data.gov.uk/id/local-authority/29UP,Tonbridge & Malling Borough Council,2/8/2023,0022027165/4,22027165, 26.13,Urbaser LTD,01718800,,Dog Bin Emptying,Haysden Country Park,B22LC000044012,
http://statistics.data.gov.uk/id/local-authority/29UP,Tonbridge & Malling Borough Council,2/8/2023,0022027165/40,22027165, 1430.15,Urbaser LTD,01718800,,Maintenance of Grounds,Parking Off-Street,E10HAE04520402,
http://statistics.data.gov.uk/id/local-authority/29UP,Tonbridge & Malling Borough Council,2/8/2023,0022027165/41,22027165, 92676.10,Urbaser LTD,01718800,,Contract Payments,Refuse Collection,H20SA000054001,
http://statistics.data.gov.uk/id/local-authority/29UP,Tonbridge & Malling Borough Council,2/8/2023,0022027165/42,22027165, 946.15,Urbaser LTD,01718800,,Responsible Dog Ownership,Street Scene,H23SD000044050,
http://statistics.data.gov.uk/id/local-authority/29UP,Tonbridge & Malling Borough Council,2/8/2023,0022027165/43,22027165, 56523.64,Urbaser LTD,01718800,,Contract Payments,Street Scene,H23SD000054001,
http://statistics.data.gov.uk/id/local-authority/29UP,Tonbridge & Malling Borough Council,2/8/2023,0022027165/44,22027165, 356.30,Urbaser LTD,01718800,,General Maintenance,Dry Recycling,H34SR000020301,
http://statistics.data.gov.uk/id/local-authority/29UP,Tonbridge & Malling Borough Council,2/8/2023,0022027165/45,22027165, 84198.36,Urbaser LTD,01718800,,Contract Payments,Dry Recycling,H34SR000054001,
http://statistics.data.gov.uk/id/local-authority/29UP,Tonbridge & Malling Borough Council,2/8/2023,0022027165/46,22027165, 32945.93,Urbaser LTD,01718800,,Contract Payments,Food Recycling,H34SS000054001,
http://statistics.data.gov.uk/id/local-authority/29UP,Tonbridge & Malling Borough Council,2/8/2023,0022027165/47,22027165, 17888.09,Urbaser LTD,01718800,,Contract Payments,Garden Waste Recycling,H34ST000054001,
http://statistics.data.gov.uk/id/local-authority/29UP,Tonbridge & Malling Borough Council,2/8/2023,0022027165/5,22027165, 740.63,Urbaser LTD,01718800,,Maintenance of Grounds,Open Spaces & Amenity Areas,B22LE000020402,
http://statistics.data.gov.uk/id/local-authority/29UP,Tonbridge & Malling Borough Council,2/8/2023,0022027165/6,22027165, 13.93,Urbaser LTD,01718800,,Dog Bin Emptying,Open Spaces & Amenity Areas,B22LE000044012,
http://statistics.data.gov.uk/id/local-authority/29UP,Tonbridge & Malling Borough Council,2/8/2023,0022027165/7,22027165, 24.04,Urbaser LTD,01718800,,Maintenance of Grounds,Countryside/Woodland Mgt,B22LG000020402,
http://statistics.data.gov.uk/id/local-authority/29UP,Tonbridge & Malling Borough Council,2/8/2023,0022027165/8,22027165, 72.20,Urbaser LTD,01718800,,Maintenance of Grounds,Leybourne Lakes Country Park,B22LK000020402,
http://statistics.data.gov.uk/id/local-authority/29UP,Tonbridge & Malling Borough Council,2/8/2023,0022027165/9,22027165, 26.13,Urbaser LTD,01718800,,Dog Bin Emptying,Leybourne Lakes Country Park,B22LK000044012,
http://statistics.data.gov.uk/id/local-authority/29UP,Tonbridge & Malling Borough Council,2/8/2023,0022027413/3,22027413, 2741.00,Specialist Hygiene Services,01466100,,Cleaning & Domestic Supplies,Haysden Country Park,B22LC000026001,
http://statistics.data.gov.uk/id/local-authority/29UP,Tonbridge & Malling Borough Council,2/8/2023,0022027413/4,22027413, 2271.75,Specialist Hygiene Services,01466100,,Contract Payments,Public Conveniences,H22SC000054001,
http://statistics.data.gov.uk/id/local-authority/29UP,Tonbridge & Malling Borough Council,2/8/2023,0022027414/3,22027414, 4322.11,Ward Security LTD,01490000,,Dog Warden,Street Scene,H23SD000044100,
http://statistics.data.gov.uk/id/local-authority/29UP,Tonbridge & Malling Borough Council,2/8/2023,0022027415/3,22027415, 800.00,Green Recycling LTD,01563000,,Paper Recycling,Dry Recycling,H34SR000054024,
http://statistics.data.gov.uk/id/local-authority/29UP,Tonbridge & Malling Borough Council,2/8/2023,0022027416/3,22027416, 4645.60,Countrystyle Group,00835900,781981681,Plastic Recycling,Dry Recycling,H34SR000054019,
http://statistics.data.gov.uk/id/local-authority/29UP,Tonbridge & Malling Borough Council,2/8/2023,0022027417/3,22027417, 42.18,Biffa Waste Services Ltd,01284500,,Trade Refuse Charges,Cleaning & Security,D21FD000044008,
http://statistics.data.gov.uk/id/local-authority/29UP,Tonbridge & Malling Borough Council,2/8/2023,0022027418/1,22027418, 10350.00,Waste Consulting LLP,01530700,737059028,Other Expenses,Refuse Collection,H20SA000048010,220003290
http://statistics.data.gov.uk/id/local-authority/29UP,Tonbridge & Malling Borough Council,2/8/2023,0022027419/1,22027419, 3332.70,Ward Security LTD,01490000,,Dog Warden,Street Scene,H23SD000044100,
http://statistics.data.gov.uk/id/local-authority/29UP,Tonbridge & Malling Borough Council,2/8/2023,0022027422/1,22027422, 15000.00,Kent County Council,01244700,,Kent Resource Partnership,Dry Recycling,H34SR000048143,220003301
http://statistics.data.gov.uk/id/local-authority/29UP,Tonbridge & Malling Borough Council,2/8/2023,0022027424/1,22027424, 820.40,Tunbridge Wells Borough Council,00844600,,Other Expenses,Refuse Collection,H20SA000048010,
http://statistics.data.gov.uk/id/local-authority/29UP,Tonbridge & Malling Borough Council,2/8/2023,0022027425/1,22027425, 2007.00,Smart Property Professionals,01815100,,Temporary Accommodation,Homelessness,C01AA000044051,
http://statistics.data.gov.uk/id/local-authority/29UP,Tonbridge & Malling Borough Council,2/8/2023,0022027426/1,22027426, 529.23,South East Water Ltd,00572200,,Water Charges (Metered),Homelessness,C01AAMAUN24001,
http://statistics.data.gov.uk/id/local-authority/29UP,Tonbridge & Malling Borough Council,2/8/2023,0022027427/1,22027427, 6405.50,Premier Property Providers,01785400,,Temporary Accommodation,Homelessness,C01AA000044051,
http://statistics.data.gov.uk/id/local-authority/29UP,Tonbridge & Malling Borough Council,2/8/2023,0022027428/1,22027428, 23871.00,Social & Community Care,01768400,,Temporary Accommodation,Homelessness,C01AA000044051,
http://statistics.data.gov.uk/id/local-authority/29UP,Tonbridge & Malling Borough Council,2/8/2023,0022027429/1,22027429, 2226.57,The Care Group-Housing & Care Trust,01699600,,Temporary Accommodation,Homelessness,C01AA000044051,
http://statistics.data.gov.uk/id/local-authority/29UP,Tonbridge & Malling Borough Council,2/8/2023,0022027430/1,22027430, 250.00,Monitor Pest Control Ltd,01476700,,Other Expenses,Pest Control,H24SE000048010,
http://statistics.data.gov.uk/id/local-authority/29UP,Tonbridge & Malling Borough Council,2/8/2023,0022027431/1,22027431, 11.99,KCS,00054200,,Stationery,Env Hlth & Hsg Sals&Overheads,D01AVDV0643003,220003304
http://statistics.data.gov.uk/id/local-authority/29UP,Tonbridge & Malling Borough Council,2/8/2023,0022027431/2,22027431, 2.92,KCS,00054200,,Stationery,Env Hlth & Hsg Sals&Overheads,D01AVDV0643003,220003304
http://statistics.data.gov.uk/id/local-authority/29UP,Tonbridge & Malling Borough Council,2/8/2023,0031019233/3,31019233, 170.85,British Telecommunications Plc,00012800,,Maintenance - General,Security Services Management,E09GA000040135,
http://statistics.data.gov.uk/id/local-authority/29UP,Tonbridge & Malling Borough Council,2/8/2023,0031019234/3,31019234, 3591.47,Marston,01485000,,Adjudication & Enforcement Ser,Parking Off-Street,E10HA000044230,
http://statistics.data.gov.uk/id/local-authority/29UP,Tonbridge & Malling Borough Council,2/8/2023,0031019235/3,31019235, 74.86,Shell U.K. Oil Products Limited,01673300,,"Petrol, Diesel & Oil",Patrolling,B22LF000030106,
http://statistics.data.gov.uk/id/local-authority/29UP,Tonbridge & Malling Borough Council,2/8/2023,0031019235/4,31019235, 105.05,Shell U.K. Oil Products Limited,01673300,,"Petrol, Diesel & Oil",Parking Off-Street,E10HA000030106,
http://statistics.data.gov.uk/id/local-authority/29UP,Tonbridge & Malling Borough Council,2/8/2023,0031019235/5,31019235, 105.05,Shell U.K. Oil Products Limited,01673300,,"Petrol, Diesel & Oil",Parking On-Street,E10HD000030106,
http://statistics.data.gov.uk/id/local-authority/29UP,Tonbridge & Malling Borough Council,2/8/2023,0031019236/3,31019236, 3068.33,Tonbridge & Malling Leisure Trust,01469100,,Ticket Refunds - Lower Castle,Parking Off-Street,E10HAE01344199,
http://statistics.data.gov.uk/id/local-authority/29UP,Tonbridge & Malling Borough Council,2/8/2023,0031019241/1,31019241, 450.00,Wellden Land Surveys,01410600,,Professional Fees,Boro Drainage & Land Drainage,E20MA000044001,310042817
http://statistics.data.gov.uk/id/local-authority/29UP,Tonbridge & Malling Borough Council,2/8/2023,0031019242/1,31019242, 1250.00,SWS Countryside & Landscape,01567200,,Tonbridge Christmas Lighting,Eco Dev & Reg Ton Chris Light,D52TF000047015,210056999
http://statistics.data.gov.uk/id/local-authority/29UP,Tonbridge & Malling Borough Council,2/8/2023,0031019244/1,31019244, 500.00,Traffic Enforcement Centre,00604200,,Adjudication & Enforcement Ser,Parking Off-Street,E10HA000044230,
http://statistics.data.gov.uk/id/local-authority/29UP,Tonbridge & Malling Borough Council,2/8/2023,0031019244/2,31019244, 500.00,Traffic Enforcement Centre,00604200,,Adjudication & Enforcement Ser,Parking On-Street,E10HD000044230,
http://statistics.data.gov.uk/id/local-authority/29UP,Tonbridge & Malling Borough Council,2/8/2023,0031019245/1,31019245, 27.74,Amazon EU SARL,01738400,,Repair & Mtce of Fixed Plant,Boro Highways & Emergency Oper,E01AA000020501,
http://statistics.data.gov.uk/id/local-authority/29UP,Tonbridge & Malling Borough Council,2/8/2023,0032010050/3,32010050, 2052.00,Vivid Resourcing,01773700,,Temporary Staff,Planning Sals&Overheads,D01AJDJ0111300,
http://statistics.data.gov.uk/id/local-authority/29UP,Tonbridge & Malling Borough Council,2/8/2023,0032010051/3,32010051, 6113.25,Vivid Resourcing,01773700,,Temporary Staff,Planning Sals&Overheads,D01AJDJ0111300,
http://statistics.data.gov.uk/id/local-authority/29UP,Tonbridge & Malling Borough Council,2/8/2023,0032010052/3,32010052, 4140.00,TSC Designs,01602800,359305975,Professional Fees,Building Control,A01AD000044001,
http://statistics.data.gov.uk/id/local-authority/29UP,Tonbridge & Malling Borough Council,2/8/2023,0032010053/3,32010053, 1350.08,The Oyster Partnership,01196400,,Temporary Staff,Planning Sals&Overheads,D01AJDJ0111300,
http://statistics.data.gov.uk/id/local-authority/29UP,Tonbridge & Malling Borough Council,2/8/2023,0032010054/3,32010054, 1744.32,The Oyster Partnership,01196400,,Temporary Staff,Planning Sals&Overheads,D01AJDJ0111300,
http://statistics.data.gov.uk/id/local-authority/29UP,Tonbridge & Malling Borough Council,2/8/2023,0032010055/3,32010055, 1744.85,The Oyster Partnership,01196400,,Temporary Staff,Planning Sals&Overheads,D01AJDJ0111300,
http://statistics.data.gov.uk/id/local-authority/29UP,Tonbridge & Malling Borough Council,2/8/2023,0032010056/3,32010056, 1638.24,The Oyster Partnership,01196400,,Temporary Staff,Planning Sals&Overheads,D01AJDJ0111300,
http://statistics.data.gov.uk/id/local-authority/29UP,Tonbridge & Malling Borough Council,2/8/2023,0032010057/3,32010057, 1705.68,The Oyster Partnership,01196400,,Temporary Staff,Planning Sals&Overheads,D01AJDJ0111300,
http://statistics.data.gov.uk/id/local-authority/29UP,Tonbridge & Malling Borough Council,2/8/2023,0032010058/3,32010058, 1886.75,The Oyster Partnership,01196400,,Temporary Staff,Planning Sals&Overheads,D01AJDJ0111300,
http://statistics.data.gov.uk/id/local-authority/29UP,Tonbridge & Malling Borough Council,2/8/2023,0032010061/1,32010061, 900.00,Quality Bailiffs,01835600,,Professional Fees,Development Management,A01ABENFO44001,320003388
http://statistics.data.gov.uk/id/local-authority/29UP,Tonbridge & Malling Borough Council,2/8/2023,0032010062/1,32010062, 182.07,KM Media Group Ltd,00053900,,Advertising General,Development Management,A01ABZ99944216,320003476
http://statistics.data.gov.uk/id/local-authority/29UP,Tonbridge & Malling Borough Council,2/8/2023,0032010063/1,32010063, 1479.00,G2 Recruitment Solutions,01786000,,Temporary Staff,Planning Sals&Overheads,D01AJDJ0111300,
http://statistics.data.gov.uk/id/local-authority/29UP,Tonbridge & Malling Borough Council,2/8/2023,0032010064/1,32010064, 2590.00,G2 Recruitment Solutions,01786000,,Temporary Staff,Planning Sals&Overheads,D01AJDJ0111300,
http://statistics.data.gov.uk/id/local-authority/29UP,Tonbridge & Malling Borough Council,2/8/2023,0032010065/1,32010065, 1612.50,Carrington West Limited,01844500,,Temporary Staff,Planning Sals&Overheads,D01AJDJ0111300,
http://statistics.data.gov.uk/id/local-authority/29UP,Tonbridge & Malling Borough Council,2/8/2023,0032010066/1,32010066, 1275.72,Tunbridge Wells Borough Council,00844600,,Temporary Staff,Planning Sals&Overheads,D01AJDJ0111300,
http://statistics.data.gov.uk/id/local-authority/29UP,Tonbridge & Malling Borough Council,2/8/2023,0032010067/1,32010067, 2690.07,Aylesford Parish Council,00007300,,Payments,S106 - Commuted Sums,M04AD000001001,
http://statistics.data.gov.uk/id/local-authority/29UP,Tonbridge & Malling Borough Council,2/8/2023,0032010068/1,32010068, 4138.00,Kent County Council,00322500,,AONB Management,Planning Policy,A01AF000044163,320003488
http://statistics.data.gov.uk/id/local-authority/29UP,Tonbridge & Malling Borough Council,2/8/2023,0041035163/1,41035163, 20.00,Computershare Voucher Services,01212600,,Childcare Scheme,Finance Sals&Overheads,D01AFDF0911136,
http://statistics.data.gov.uk/id/local-authority/29UP,Tonbridge & Malling Borough Council,2/8/2023,0041035163/2,41035163, 1.40,Computershare Voucher Services,01212600,,National Insurance,Finance Sals&Overheads,D01AFDF0911191,
http://statistics.data.gov.uk/id/local-authority/29UP,Tonbridge & Malling Borough Council,2/8/2023,0041035163/3,41035163, 20.00,Computershare Voucher Services,01212600,,Childcare Scheme,Env Hlth & Hsg Sals&Overheads,D01AVDV0211136,
http://statistics.data.gov.uk/id/local-authority/29UP,Tonbridge & Malling Borough Council,2/8/2023,0041035163/4,41035163, 1.40,Computershare Voucher Services,01212600,,National Insurance,Env Hlth & Hsg Sals&Overheads,D01AVDV0211191,
http://statistics.data.gov.uk/id/local-authority/29UP,Tonbridge & Malling Borough Council,2/8/2023,0041035163/5,41035163, 243.00,Computershare Voucher Services,01212600,,Childcare Scheme,Env Hlth & Hsg Sals&Overheads,D01AVDV0711136,
http://statistics.data.gov.uk/id/local-authority/29UP,Tonbridge & Malling Borough Council,2/8/2023,0041035163/6,41035163, 17.01,Computershare Voucher Services,01212600,,National Insurance,Env Hlth & Hsg Sals&Overheads,D01AVDV0711191,
http://statistics.data.gov.uk/id/local-authority/29UP,Tonbridge & Malling Borough Council,2/8/2023,0041035164/1,41035164, 2988.39,Greenhalgh Kerr,01590200,,Bailiffs Commission,Local Revenue & NNDR Collect,D41QA000044075,
http://statistics.data.gov.uk/id/local-authority/29UP,Tonbridge & Malling Borough Council,2/8/2023,0041035164/2,41035164, 227.00,Greenhalgh Kerr,01590200,,Bailiffs Commission,Local Revenue & NNDR Collect,D41QA000044075,
http://statistics.data.gov.uk/id/local-authority/29UP,Tonbridge & Malling Borough Council,2/8/2023,0041035164/3,41035164, 1318.00,Greenhalgh Kerr,01590200,,Bailiffs Commission,Local Revenue & NNDR Collect,D41QA000044075,
http://statistics.data.gov.uk/id/local-authority/29UP,Tonbridge & Malling Borough Council,2/8/2023,0041035165/1,41035165, 46280.00,Kent County Council,00322500,,Temporary Staff,Finance Sals&Overheads,D01AFDF0611300,
http://statistics.data.gov.uk/id/local-authority/29UP,Tonbridge & Malling Borough Council,2/8/2023,0041035166/1,41035166, 2664.51,Rundle & Co Ltd,00087200,,Bailiffs Commission,Local Revenue & NNDR Collect,D41QA000044075,
http://statistics.data.gov.uk/id/local-authority/29UP,Tonbridge & Malling Borough Council,2/8/2023,0041035167/1,41035167, 326.60,Rundle & Co Ltd,00087200,,Bailiffs Commission,Local Revenue & NNDR Collect,D41QA000044075,
http://statistics.data.gov.uk/id/local-authority/29UP,Tonbridge & Malling Borough Council,2/8/2023,0041035168/1,41035168, 64101.20,Cushman & Wakefield,01772600,,Pay to Principal - Angel East,Parking Off-Street,E10HAE00144196,
http://statistics.data.gov.uk/id/local-authority/29UP,Tonbridge & Malling Borough Council,2/8/2023,0041035170/1,41035170, 93.66,Adelante Software Limited,01393800,812115871,Credit Card Commission,Banking Arrangements,D43QK000044082,
http://statistics.data.gov.uk/id/local-authority/29UP,Tonbridge & Malling Borough Council,2/8/2023,0041035171/1,41035171, 960.00,Greenhalgh Kerr,01590200,,Bailiffs Commission,Local Revenue & NNDR Collect,D41QA000044075,
http://statistics.data.gov.uk/id/local-authority/29UP,Tonbridge & Malling Borough Council,2/8/2023,0041035172/1,41035172, 2000.00,Greenhalgh Kerr,01590200,,Bailiffs Commission,Local Revenue & NNDR Collect,D41QA000044075,
http://statistics.data.gov.uk/id/local-authority/29UP,Tonbridge & Malling Borough Council,2/8/2023,0041035172/2,41035172, 3.00,Greenhalgh Kerr,01590200,,Bailiffs Commission,Local Revenue & NNDR Collect,D41QA000044075,
http://statistics.data.gov.uk/id/local-authority/29UP,Tonbridge & Malling Borough Council,2/8/2023,0051008776/3,51008776, 5520.15,IT Talent Solutions Ltd,01885200,833334934,Placement Fees,Recruitment Expenses,D10DADN0113190,
http://statistics.data.gov.uk/id/local-authority/29UP,Tonbridge & Malling Borough Council,2/8/2023,0051008777/3,51008777, 200.00,HQN Limited,00982000,,Ext Fees/Prof & Tech,Training,D10DCDV0713561,
http://statistics.data.gov.uk/id/local-authority/29UP,Tonbridge & Malling Borough Council,2/8/2023,0051008778/3,51008778, 165.00,The Institute of Licensing (Events),01463600,,Ext Fees/Prof & Tech,Training,D10DCDR0413561,
http://statistics.data.gov.uk/id/local-authority/29UP,Tonbridge & Malling Borough Council,2/8/2023,0051008779/3,51008779, 578.00,The Institute of Licensing (Events),01463600,,Ext Fees/Prof & Tech,Training,D10DCDR0413561,
http://statistics.data.gov.uk/id/local-authority/29UP,Tonbridge & Malling Borough Council,2/8/2023,0051008780/1,51008780, 1075.00,The East Malling Trust,01490600,,Ext Fees/Prof & Tech,Training,D10DCDG0113561,510010610
http://statistics.data.gov.uk/id/local-authority/29UP,Tonbridge & Malling Borough Council,2/13/2023,0011045655/1,11045655, 2317.29,Barden Stores And Post Office,00008600,,Purchases,Mailsort Stock Account,K37BR000001002,
http://statistics.data.gov.uk/id/local-authority/29UP,Tonbridge & Malling Borough Council,2/13/2023,0011045655/2,11045655, 7.70,Barden Stores And Post Office,00008600,,Purchases,Mailsort Stock Account,K37BR000001002,
http://statistics.data.gov.uk/id/local-authority/29UP,Tonbridge & Malling Borough Council,2/13/2023,0011045655/3,11045655, 14.70,Barden Stores And Post Office,00008600,,Purchases,Mailsort Stock Account,K37BR000001002,
http://statistics.data.gov.uk/id/local-authority/29UP,Tonbridge & Malling Borough Council,2/13/2023,0041035177/1,41035177, 1961.53,Goldsmid Settled Estates,01885800,,Rent Deposit / Rent in Advance,Homelessness,C01AAC85644093,
http://statistics.data.gov.uk/id/local-authority/29UP,Tonbridge & Malling Borough Council,2/13/2023,0041035177/2,41035177, 1700.00,Goldsmid Settled Estates,01885800,,Rent Deposit / Rent in Advance,Homelessness,C01AAC85744093,
http://statistics.data.gov.uk/id/local-authority/29UP,Tonbridge & Malling Borough Council,2/13/2023,0041035178/1,41035178, 1650.00,REDACTED PERSONAL DATA,01885700,,Other Expenses,Ukrainian Refugee Assistance,D54UA000048010,
http://statistics.data.gov.uk/id/local-authority/29UP,Tonbridge & Malling Borough Council,2/13/2023,0041035178/2,41035178, 1500.00,REDACTED PERSONAL DATA,01885700,,Other Expenses,Ukrainian Refugee Assistance,D54UA000048010,
http://statistics.data.gov.uk/id/local-authority/29UP,Tonbridge & Malling Borough Council,2/14/2023,0041035180/1,41035180, 59.95,Allpay Limited,01816500,,Giro / Swipe Card Charges,Local Revenue & NNDR Collect,D41QA000044083,
http://statistics.data.gov.uk/id/local-authority/29UP,Tonbridge & Malling Borough Council,2/15/2023,0011045648/1,11045648, 1862.67,GSF SANDYLIGHT LTD,01705300,,Temporary Staff,Admin & Prop Sals&Overheads,D01AADA0511300,
http://statistics.data.gov.uk/id/local-authority/29UP,Tonbridge & Malling Borough Council,2/15/2023,0011045649/1,11045649, 1862.67,GSF SANDYLIGHT LTD,01705300,,Temporary Staff,Admin & Prop Sals&Overheads,D01AADA0511300,
http://statistics.data.gov.uk/id/local-authority/29UP,Tonbridge & Malling Borough Council,2/15/2023,0011045650/1,11045650, 150.00,BML Building Services Ltd,01505000,,Repairs & Mtce to Buildings,Homelessness,C01AATNHS20101,
http://statistics.data.gov.uk/id/local-authority/29UP,Tonbridge & Malling Borough Council,2/15/2023,0011045651/1,11045651, 1464.26,Ricoh UK Ltd,01402300,,Maintenance - General,Printing,D22GA000040135,
http://statistics.data.gov.uk/id/local-authority/29UP,Tonbridge & Malling Borough Council,2/15/2023,0011045652/1,11045652, 292.80,Premier Paper Group,01421800,,Purchases - Paper,Printing,D22GA000040102,
http://statistics.data.gov.uk/id/local-authority/29UP,Tonbridge & Malling Borough Council,2/15/2023,0011045653/1,11045653, 252.00,Royal Cars,01857400,,Other Expenses,Mayoral & Other Member Support,D29LX000048010,
http://statistics.data.gov.uk/id/local-authority/29UP,Tonbridge & Malling Borough Council,2/15/2023,0011045654/1,11045654, 20.00,Royal Mail,00086200,,Purchases,Business Reply Stock Account,K14AT000001002,
http://statistics.data.gov.uk/id/local-authority/29UP,Tonbridge & Malling Borough Council,2/15/2023,0011045654/2,11045654, 64.14,Royal Mail,00086200,,Purchases,Business Reply Stock Account,K14AT000001002,
http://statistics.data.gov.uk/id/local-authority/29UP,Tonbridge & Malling Borough Council,2/15/2023,0011045656/1,11045656, 1561.36,The Oyster Partnership,01196400,,Temporary Staff,Admin & Prop Sals&Overheads,D01AADA1111300,
http://statistics.data.gov.uk/id/local-authority/29UP,Tonbridge & Malling Borough Council,2/15/2023,0011045657/1,11045657, 243.69,Ricoh UK Ltd,01402300,,Maintenance - General,Printing,D22GA000040135,
http://statistics.data.gov.uk/id/local-authority/29UP,Tonbridge & Malling Borough Council,2/15/2023,0011045658/1,11045658, 112.00,East Sussex Fire Ltd,01843100,,Repairs & Mtce to Buildings,Homelessness,C01AATNHS20101,110069587
http://statistics.data.gov.uk/id/local-authority/29UP,Tonbridge & Malling Borough Council,2/15/2023,0011045659/1,11045659, 479.88,KCS,00054200,,Cleaning & Domestic Supplies,Cleaning & Security,D21FD000026001,110070041
http://statistics.data.gov.uk/id/local-authority/29UP,Tonbridge & Malling Borough Council,2/15/2023,0011045659/2,11045659, 151.96,KCS,00054200,,Cleaning & Domestic Supplies,Cleaning & Security,D21FD000026001,110070041
http://statistics.data.gov.uk/id/local-authority/29UP,Tonbridge & Malling Borough Council,2/15/2023,0011045659/3,11045659, 318.80,KCS,00054200,,Cleaning & Domestic Supplies,Cleaning & Security,D21FD000026001,110070041
http://statistics.data.gov.uk/id/local-authority/29UP,Tonbridge & Malling Borough Council,2/15/2023,0011045659/4,11045659, 41.70,KCS,00054200,,Cleaning & Domestic Supplies,Cleaning & Security,D21FD000026001,110070041
http://statistics.data.gov.uk/id/local-authority/29UP,Tonbridge & Malling Borough Council,2/15/2023,0011045659/5,11045659, 44.97,KCS,00054200,,Cleaning & Domestic Supplies,Cleaning & Security,D21FD000026001,110070041
http://statistics.data.gov.uk/id/local-authority/29UP,Tonbridge & Malling Borough Council,2/15/2023,0011045661/1,11045661, 957.00,Loxton Installations Ltd,01278800,,BRREP Servicing - ext lighting,Angel Centre,M15HAP20001941,110069974
http://statistics.data.gov.uk/id/local-authority/29UP,Tonbridge & Malling Borough Council,2/15/2023,0011045662/1,11045662, 1190.00,Loxton Installations Ltd,01278800,,BRREP IEE Testing,Larkfield Leisure Centre,M15HDP30001991,110069942
http://statistics.data.gov.uk/id/local-authority/29UP,Tonbridge & Malling Borough Council,2/15/2023,0011045665/1,11045665, 262.00,Loxton Installations Ltd,01278800,,Repairs & Mtce to Buildings,Homelessness,C01AATNHS20101,110070049
http://statistics.data.gov.uk/id/local-authority/29UP,Tonbridge & Malling Borough Council,2/15/2023,0011045666/1,11045666, 2031.20,Broadwater Technologies,01534500,,BRREP Servicing - pool plant,Tonbridge Swimming Pool,M15HBP20001910,110069992
http://statistics.data.gov.uk/id/local-authority/29UP,Tonbridge & Malling Borough Council,2/15/2023,0011045667/1,11045667, 2317.29,Royal Mail,00086200,,Purchases,Mailsort Stock Account,K37BR000001002,
http://statistics.data.gov.uk/id/local-authority/29UP,Tonbridge & Malling Borough Council,2/15/2023,0011045667/2,11045667, 7.70,Royal Mail,00086200,,Purchases,Mailsort Stock Account,K37BR000001002,
http://statistics.data.gov.uk/id/local-authority/29UP,Tonbridge & Malling Borough Council,2/15/2023,0011045667/3,11045667, 14.70,Royal Mail,00086200,,Purchases,Mailsort Stock Account,K37BR000001002,
http://statistics.data.gov.uk/id/local-authority/29UP,Tonbridge & Malling Borough Council,2/15/2023,0012008625/10,12008625, 3.00,O2 UK Ltd,01268000,,Mobile Telephones,Technical Sals&Overheads,D01AEDE0045013,
http://statistics.data.gov.uk/id/local-authority/29UP,Tonbridge & Malling Borough Council,2/15/2023,0012008625/11,12008625, 6.00,O2 UK Ltd,01268000,,Mobile Telephones,Technical Sals&Overheads,D01AEDE0145013,
http://statistics.data.gov.uk/id/local-authority/29UP,Tonbridge & Malling Borough Council,2/15/2023,0012008625/12,12008625, 9.10,O2 UK Ltd,01268000,,Mobile Telephones,Technical Sals&Overheads,D01AEDE0245013,
http://statistics.data.gov.uk/id/local-authority/29UP,Tonbridge & Malling Borough Council,2/15/2023,0012008625/13,12008625, 42.30,O2 UK Ltd,01268000,,Mobile Telephones,Technical Sals&Overheads,D01AEDE0445013,
http://statistics.data.gov.uk/id/local-authority/29UP,Tonbridge & Malling Borough Council,2/15/2023,0012008625/14,12008625, 3.00,O2 UK Ltd,01268000,,Mobile Telephones,Technical Sals&Overheads,D01AEDE0545013,
http://statistics.data.gov.uk/id/local-authority/29UP,Tonbridge & Malling Borough Council,2/15/2023,0012008625/15,12008625, 12.00,O2 UK Ltd,01268000,,Mobile Telephones,Finance Sals&Overheads,D01AFDF0045013,
http://statistics.data.gov.uk/id/local-authority/29UP,Tonbridge & Malling Borough Council,2/15/2023,0012008625/16,12008625, 6.00,O2 UK Ltd,01268000,,Mobile Telephones,Finance Sals&Overheads,D01AFDF0945013,
http://statistics.data.gov.uk/id/local-authority/29UP,Tonbridge & Malling Borough Council,2/15/2023,0012008625/17,12008625, 12.00,O2 UK Ltd,01268000,,Mobile Telephones,St Scene & Leis Sals&Overheads,D01AGDG0045013,
http://statistics.data.gov.uk/id/local-authority/29UP,Tonbridge & Malling Borough Council,2/15/2023,0012008625/18,12008625, 12.00,O2 UK Ltd,01268000,,Mobile Telephones,St Scene & Leis Sals&Overheads,D01AGDG0145013,
http://statistics.data.gov.uk/id/local-authority/29UP,Tonbridge & Malling Borough Council,2/15/2023,0012008625/19,12008625, 9.00,O2 UK Ltd,01268000,,Mobile Telephones,St Scene & Leis Sals&Overheads,D01AGDG0445013,
http://statistics.data.gov.uk/id/local-authority/29UP,Tonbridge & Malling Borough Council,2/15/2023,0012008625/20,12008625, 36.00,O2 UK Ltd,01268000,,Mobile Telephones,St Scene & Leis Sals&Overheads,D01AGDG2045013,
http://statistics.data.gov.uk/id/local-authority/29UP,Tonbridge & Malling Borough Council,2/15/2023,0012008625/21,12008625, 9.00,O2 UK Ltd,01268000,,Mobile Telephones,Planning Sals&Overheads,D01AJDJ0045013,
http://statistics.data.gov.uk/id/local-authority/29UP,Tonbridge & Malling Borough Council,2/15/2023,0012008625/22,12008625, 12.00,O2 UK Ltd,01268000,,Mobile Telephones,Planning Sals&Overheads,D01AJDJ0245013,
http://statistics.data.gov.uk/id/local-authority/29UP,Tonbridge & Malling Borough Council,2/15/2023,0012008625/23,12008625, 6.00,O2 UK Ltd,01268000,,Mobile Telephones,Legal Sals&Overheads,D01ARDR0045013,
http://statistics.data.gov.uk/id/local-authority/29UP,Tonbridge & Malling Borough Council,2/15/2023,0012008625/24,12008625, 12.90,O2 UK Ltd,01268000,,Mobile Telephones,Legal Sals&Overheads,D01ARDR0445013,
http://statistics.data.gov.uk/id/local-authority/29UP,Tonbridge & Malling Borough Council,2/15/2023,0012008625/25,12008625, 3.00,O2 UK Ltd,01268000,,Mobile Telephones,Legal Sals&Overheads,D01ARDR0745013,
http://statistics.data.gov.uk/id/local-authority/29UP,Tonbridge & Malling Borough Council,2/15/2023,0012008625/26,12008625, 3.00,O2 UK Ltd,01268000,,Mobile Telephones,Env Hlth & Hsg Sals&Overheads,D01AVDV0045013,
http://statistics.data.gov.uk/id/local-authority/29UP,Tonbridge & Malling Borough Council,2/15/2023,0012008625/27,12008625, 9.00,O2 UK Ltd,01268000,,Mobile Telephones,Env Hlth & Hsg Sals&Overheads,D01AVDV0145013,
http://statistics.data.gov.uk/id/local-authority/29UP,Tonbridge & Malling Borough Council,2/15/2023,0012008625/28,12008625, 6.00,O2 UK Ltd,01268000,,Mobile Telephones,Env Hlth & Hsg Sals&Overheads,D01AVDV0345013,
http://statistics.data.gov.uk/id/local-authority/29UP,Tonbridge & Malling Borough Council,2/15/2023,0012008625/29,12008625, 3.00,O2 UK Ltd,01268000,,Mobile Telephones,Env Hlth & Hsg Sals&Overheads,D01AVDV0745013,
http://statistics.data.gov.uk/id/local-authority/29UP,Tonbridge & Malling Borough Council,2/15/2023,0012008625/3,12008625, 3.00,O2 UK Ltd,01268000,,Telephones - General,Open Spaces & Amenity Areas,B22LE000045010,
http://statistics.data.gov.uk/id/local-authority/29UP,Tonbridge & Malling Borough Council,2/15/2023,0012008625/30,12008625, 6.00,O2 UK Ltd,01268000,,Mobile Telephones,Env Hlth & Hsg Sals&Overheads,D01AVDV0945013,
http://statistics.data.gov.uk/id/local-authority/29UP,Tonbridge & Malling Borough Council,2/15/2023,0012008625/31,12008625, 9.30,O2 UK Ltd,01268000,,Mobile Telephones,Customer Services,D23CS000045013,
http://statistics.data.gov.uk/id/local-authority/29UP,Tonbridge & Malling Borough Council,2/15/2023,0012008625/32,12008625, 3.00,O2 UK Ltd,01268000,,Mobile Telephones,Tonbridge Gateway,D23TG000045013,
http://statistics.data.gov.uk/id/local-authority/29UP,Tonbridge & Malling Borough Council,2/15/2023,0012008625/33,12008625, 627.00,O2 UK Ltd,01268000,,Leased Lines & Modems,Information Technology,D27KD000045011,
http://statistics.data.gov.uk/id/local-authority/29UP,Tonbridge & Malling Borough Council,2/15/2023,0012008625/34,12008625, 3.00,O2 UK Ltd,01268000,,Mobile Telephones,Mayoral & Other Member Support,D29LX000045013,
http://statistics.data.gov.uk/id/local-authority/29UP,Tonbridge & Malling Borough Council,2/15/2023,0012008625/35,12008625, 3.00,O2 UK Ltd,01268000,,Emergency Out of Hours Recharg,Refuse Collection,H20SA000045030,
http://statistics.data.gov.uk/id/local-authority/29UP,Tonbridge & Malling Borough Council,2/15/2023,0012008625/36,12008625, 3.00,O2 UK Ltd,01268000,,Emergency Out of Hours Recharg,Street Scene,H23SD000045030,
http://statistics.data.gov.uk/id/local-authority/29UP,Tonbridge & Malling Borough Council,2/15/2023,0012008625/4,12008625, 3.00,O2 UK Ltd,01268000,,Mobile Telephones,Admin & Prop Sals&Overheads,D01AADA0045013,
http://statistics.data.gov.uk/id/local-authority/29UP,Tonbridge & Malling Borough Council,2/15/2023,0012008625/5,12008625, 3.00,O2 UK Ltd,01268000,,Mobile Telephones,Admin & Prop Sals&Overheads,D01AADA1045013,
http://statistics.data.gov.uk/id/local-authority/29UP,Tonbridge & Malling Borough Council,2/15/2023,0012008625/6,12008625, 9.00,O2 UK Ltd,01268000,,Mobile Telephones,Admin & Prop Sals&Overheads,D01AADA1245013,
http://statistics.data.gov.uk/id/local-authority/29UP,Tonbridge & Malling Borough Council,2/15/2023,0012008625/7,12008625, 3.00,O2 UK Ltd,01268000,,Mobile Telephones,Chief Exec Sals&Overheads,D01ACDC0045013,
http://statistics.data.gov.uk/id/local-authority/29UP,Tonbridge & Malling Borough Council,2/15/2023,0012008625/8,12008625, 3.00,O2 UK Ltd,01268000,,Mobile Telephones,Chief Exec Sals&Overheads,D01ACDC0145013,
http://statistics.data.gov.uk/id/local-authority/29UP,Tonbridge & Malling Borough Council,2/15/2023,0012008625/9,12008625, 3.00,O2 UK Ltd,01268000,,Mobile Telephones,Chief Exec Sals&Overheads,D01ACDC0245013,
http://statistics.data.gov.uk/id/local-authority/29UP,Tonbridge & Malling Borough Council,2/15/2023,0021038412/1,21038412, 110.00,Yew Tree Stone Ltd,01874800,,Maintenance of Grounds,Cemetery,B26MP000020402,210057062
http://statistics.data.gov.uk/id/local-authority/29UP,Tonbridge & Malling Borough Council,2/15/2023,0021038413/3,21038413, 48.56,B&Q/Screwfix Direct(TradeUKAccount),00141300,,Purchases,Open Spaces & Amenity Areas,B22LE000040101,
http://statistics.data.gov.uk/id/local-authority/29UP,Tonbridge & Malling Borough Council,2/15/2023,0021038414/3,21038414, 200.00,Monitor Pest Control Ltd,01476700,,Rodent Control,Open Spaces & Amenity Areas,B22LE000044053,
http://statistics.data.gov.uk/id/local-authority/29UP,Tonbridge & Malling Borough Council,2/15/2023,0021038415/1,21038415, 298.98,Landscape Services Ltd,00057600,,Grounds Maintenance Contract,Cemetery,B26MP000050103,
http://statistics.data.gov.uk/id/local-authority/29UP,Tonbridge & Malling Borough Council,2/15/2023,0021038416/1,21038416, 4748.80,West Malling Chamber or Commerce,01750800,,Borough Christmas Lighting,Eco Dev & Reg Boro Chris Light,D52TE000047014,
http://statistics.data.gov.uk/id/local-authority/29UP,Tonbridge & Malling Borough Council,2/15/2023,0021038417/1,21038417, 2240.00,The Snodland Partnership,00993200,,Borough Christmas Lighting,Eco Dev & Reg Boro Chris Light,D52TE000047014,
http://statistics.data.gov.uk/id/local-authority/29UP,Tonbridge & Malling Borough Council,2/15/2023,0021038418/1,21038418, 1000.00,Aylesford Parish Council,00007300,,Borough Christmas Lighting,Eco Dev & Reg Boro Chris Light,D52TE000047014,
http://statistics.data.gov.uk/id/local-authority/29UP,Tonbridge & Malling Borough Council,2/15/2023,0022027432/1,22027432, 1116.00,1st  Steps Housing Kent,01716100,,Temporary Accommodation,Homelessness,C01AA000044051,
http://statistics.data.gov.uk/id/local-authority/29UP,Tonbridge & Malling Borough Council,2/15/2023,0022027433/1,22027433, 2232.00,1st  Steps Housing Kent,01716100,,Temporary Accommodation,Homelessness,C01AA000044051,
http://statistics.data.gov.uk/id/local-authority/29UP,Tonbridge & Malling Borough Council,2/15/2023,0022027434/3,22027434, 102.65,British Gas,01148500,,Electricity,Homelessness,C01AAMAUN21002,
http://statistics.data.gov.uk/id/local-authority/29UP,Tonbridge & Malling Borough Council,2/15/2023,0022027435/1,22027435, 6269.00,Under My Roof Ltd,01806700,,Temporary Accommodation,Homelessness,C01AA000044051,
http://statistics.data.gov.uk/id/local-authority/29UP,Tonbridge & Malling Borough Council,2/15/2023,0022027436/1,22027436, 5074.01,Clarion Housing,01078200,,Contribution from Other Bodies,Homelessness,C01AACV1995001,
http://statistics.data.gov.uk/id/local-authority/29UP,Tonbridge & Malling Borough Council,2/15/2023,0022027437/1,22027437, 3018.87,Clarion Housing,01078200,,Contribution from Other Bodies,Homelessness,C01AACV1995001,
http://statistics.data.gov.uk/id/local-authority/29UP,Tonbridge & Malling Borough Council,2/15/2023,0022027438/1,22027438, 1002.53,Clarion Housing,01078200,,Contribution from Other Bodies,Homelessness,C01AACV1995001,
http://statistics.data.gov.uk/id/local-authority/29UP,Tonbridge & Malling Borough Council,2/15/2023,0022027439/1,22027439, 123.75,Sevenoaks District Council,00089300,,Healthy Living Initiatives,Public Health - Healthy Living,H40SYVH0048145,220003220
http://statistics.data.gov.uk/id/local-authority/29UP,Tonbridge & Malling Borough Council,2/15/2023,0022027440/3,22027440, 14180.00,SPA CAFFE LIMITED,00127100,,Temporary Accommodation,Homelessness,C01AA000044051,
http://statistics.data.gov.uk/id/local-authority/29UP,Tonbridge & Malling Borough Council,2/15/2023,0022027441/1,22027441, 1709.00,Simply Rented Ltd ,01691400,,Temporary Accommodation,Homelessness,C01AA000044051,
http://statistics.data.gov.uk/id/local-authority/29UP,Tonbridge & Malling Borough Council,2/15/2023,0022027442/3,22027442, 1705.00,Simon Niblett Lettings,00072600,,Temporary Accommodation,Homelessness,C01AA000044051,
http://statistics.data.gov.uk/id/local-authority/29UP,Tonbridge & Malling Borough Council,2/15/2023,0022027443/3,22027443, 9990.00,Simon Niblett Lettings,00072600,,Temporary Staff,Planning Sals&Overheads,D01AJDJ0111300,
http://statistics.data.gov.uk/id/local-authority/29UP,Tonbridge & Malling Borough Council,2/15/2023,0022027444/1,22027444, 82.65,PLFS Property Letting Furniture Solution,01873400,,Purchases,Homelessness,C01AA000040101,220003287
http://statistics.data.gov.uk/id/local-authority/29UP,Tonbridge & Malling Borough Council,2/15/2023,0022027444/2,22027444, 133.00,PLFS Property Letting Furniture Solution,01873400,,Purchases,Homelessness,C01AATNPR40101,220003287
http://statistics.data.gov.uk/id/local-authority/29UP,Tonbridge & Malling Borough Council,2/15/2023,0022027444/3,22027444, 450.24,PLFS Property Letting Furniture Solution,01873400,,Purchases,Homelessness,C01AATNPR40101,220003287
http://statistics.data.gov.uk/id/local-authority/29UP,Tonbridge & Malling Borough Council,2/15/2023,0022027444/4,22027444, 792.30,PLFS Property Letting Furniture Solution,01873400,,Purchases,Homelessness,C01AATNPR40101,220003287
http://statistics.data.gov.uk/id/local-authority/29UP,Tonbridge & Malling Borough Council,2/15/2023,0022027445/1,22027445, 133.00,PLFS Property Letting Furniture Solution,01873400,,Purchases,Homelessness,C01AATNPR40101,220003288
http://statistics.data.gov.uk/id/local-authority/29UP,Tonbridge & Malling Borough Council,2/15/2023,0022027445/2,22027445, 82.65,PLFS Property Letting Furniture Solution,01873400,,Purchases,Homelessness,C01AATNPR40101,220003288
http://statistics.data.gov.uk/id/local-authority/29UP,Tonbridge & Malling Borough Council,2/15/2023,0022027445/3,22027445, 450.24,PLFS Property Letting Furniture Solution,01873400,,Purchases,Homelessness,C01AATNPR40101,220003288
http://statistics.data.gov.uk/id/local-authority/29UP,Tonbridge & Malling Borough Council,2/15/2023,0022027445/4,22027445, 792.30,PLFS Property Letting Furniture Solution,01873400,,Purchases,Homelessness,C01AATNPR40101,220003288
http://statistics.data.gov.uk/id/local-authority/29UP,Tonbridge & Malling Borough Council,2/15/2023,0022027446/1,22027446, 22665.00,Paramount Independent Property Suppliers,01595300,,Temporary Accommodation,Homelessness,C01AA000044051,
http://statistics.data.gov.uk/id/local-authority/29UP,Tonbridge & Malling Borough Council,2/15/2023,0022027447/1,22027447, 298.00,Premiere Projects,00201200,,Other Expenses,Disabled Facilities Grant Mand,P03AC000009908,
http://statistics.data.gov.uk/id/local-authority/29UP,Tonbridge & Malling Borough Council,2/15/2023,0022027448/1,22027448, 1774.92,Town & Country Housing Group,01385400,,Other Expenses,Disabled Facilities Grant Mand,P03AC000009908,
http://statistics.data.gov.uk/id/local-authority/29UP,Tonbridge & Malling Borough Council,2/15/2023,0022027449/3,22027449, 50.00,Monitor Pest Control Ltd,01476700,,Other Expenses,Pest Control,H24SE000048010,
http://statistics.data.gov.uk/id/local-authority/29UP,Tonbridge & Malling Borough Council,2/15/2023,0022027450/1,22027450, 10416.00,Less Homeless Ltd,01489300,,Temporary Accommodation,Homelessness,C01AA000044051,
http://statistics.data.gov.uk/id/local-authority/29UP,Tonbridge & Malling Borough Council,2/15/2023,0022027451/1,22027451, 1891.00,Kent Housing,01503200,,Temporary Accommodation,Homelessness,C01AA000044051,
http://statistics.data.gov.uk/id/local-authority/29UP,Tonbridge & Malling Borough Council,2/15/2023,0022027452/1,22027452, 5239.00,House to Home Lettings Ltd ,01647600,,Temporary Accommodation,Homelessness,C01AA000044051,
http://statistics.data.gov.uk/id/local-authority/29UP,Tonbridge & Malling Borough Council,2/15/2023,0022027453/1,22027453, 69.47,Posturite UK Ltd,00970300,,Health General,Food & Safety - General,H35SW000044049,
http://statistics.data.gov.uk/id/local-authority/29UP,Tonbridge & Malling Borough Council,2/15/2023,0022027455/1,22027455, 735.00,Countrystyle Group,00835900,781981681,Collection of Card,Dry Recycling,H34SR000054008,
http://statistics.data.gov.uk/id/local-authority/29UP,Tonbridge & Malling Borough Council,2/15/2023,0031019250/1,31019250, 182.00,PSR Lighting & Signs Ltd,01265400,,Tonbridge Christmas Lighting,Eco Dev & Reg Ton Chris Light,D52TF000047015,210057100
http://statistics.data.gov.uk/id/local-authority/29UP,Tonbridge & Malling Borough Council,2/15/2023,0031019250/2,31019250, 896.60,PSR Lighting & Signs Ltd,01265400,,Tonbridge Christmas Lighting,Eco Dev & Reg Ton Chris Light,D52TF000047015,210057100
http://statistics.data.gov.uk/id/local-authority/29UP,Tonbridge & Malling Borough Council,2/15/2023,0031019251/3,31019251, 217.37,KCC - L.A.S.E.R Commercial Services ,00184300,,Electricity,Parking Off-Street,E10HA000021002,
http://statistics.data.gov.uk/id/local-authority/29UP,Tonbridge & Malling Borough Council,2/15/2023,0031019252/3,31019252, 2454.11,CDER Group,01773300,,Adjudication & Enforcement Ser,Parking Off-Street,E10HA000044230,
http://statistics.data.gov.uk/id/local-authority/29UP,Tonbridge & Malling Borough Council,2/15/2023,0031019253/1,31019253, 2231.34,PSR Lighting & Signs Ltd,01265400,,Other Expenses,Car Park Imp Rolling Programme,P01AB000009908,310042919
http://statistics.data.gov.uk/id/local-authority/29UP,Tonbridge & Malling Borough Council,2/15/2023,0031019253/2,31019253, 574.41,PSR Lighting & Signs Ltd,01265400,,Other Expenses,Car Park Imp Rolling Programme,P01AB000009908,310042919
http://statistics.data.gov.uk/id/local-authority/29UP,Tonbridge & Malling Borough Council,2/15/2023,0031019254/1,31019254, 384.35,C. S. Mitchell LTD,01704800,,Premises Repairs & Maintenance,Parking Off-Street,E10HA000020601,310042971
http://statistics.data.gov.uk/id/local-authority/29UP,Tonbridge & Malling Borough Council,2/15/2023,0031019255/1,31019255, 4397.50,Arnold Tarmac Ltd,01685100,,Other Expenses,Car Park Imp Rolling Programme,P01AB000009908,310042965
http://statistics.data.gov.uk/id/local-authority/29UP,Tonbridge & Malling Borough Council,2/15/2023,0031019256/1,31019256, 47.47,REDACTED PERSONAL DATA,01344100,,Purchases,Parking Off-Street,E10HA000040101,
http://statistics.data.gov.uk/id/local-authority/29UP,Tonbridge & Malling Borough Council,2/15/2023,0031019257/3,31019257, 5.83,REDACTED PERSONAL DATA,01526800,,Uniforms,Parking Off-Street,E10HA000042002,
http://statistics.data.gov.uk/id/local-authority/29UP,Tonbridge & Malling Borough Council,2/15/2023,0032010069/1,32010069, 2123.25,Vivid Resourcing,01773700,,Temporary Staff,Planning Sals&Overheads,D01AJDJ0111300,
http://statistics.data.gov.uk/id/local-authority/29UP,Tonbridge & Malling Borough Council,2/15/2023,0032010070/1,32010070, 1645.41,The Oyster Partnership,01196400,,Temporary Staff,Planning Sals&Overheads,D01AJDJ0111300,
http://statistics.data.gov.uk/id/local-authority/29UP,Tonbridge & Malling Borough Council,2/15/2023,0032010071/1,32010071, 1717.18,The Oyster Partnership,01196400,,Temporary Staff,Planning Sals&Overheads,D01AJDJ0111300,
http://statistics.data.gov.uk/id/local-authority/29UP,Tonbridge & Malling Borough Council,2/15/2023,0032010072/1,32010072, 1745.75,The Oyster Partnership,01196400,,Temporary Staff,Planning Sals&Overheads,D01AJDJ0111300,
http://statistics.data.gov.uk/id/local-authority/29UP,Tonbridge & Malling Borough Council,2/15/2023,0032010073/1,32010073, 4367.00,JBA Consulting,01599000,665300941,Development of Local Plan,Development of Local Plan,A01AE000044023,320003466
http://statistics.data.gov.uk/id/local-authority/29UP,Tonbridge & Malling Borough Council,2/15/2023,0032010074/1,32010074, 1609.50,G2 Recruitment Solutions,01786000,,Temporary Staff,Planning Sals&Overheads,D01AJDJ0111300,
http://statistics.data.gov.uk/id/local-authority/29UP,Tonbridge & Malling Borough Council,2/15/2023,0032010075/1,32010075, 2590.00,G2 Recruitment Solutions,01786000,,Temporary Staff,Planning Sals&Overheads,D01AJDJ0111300,
http://statistics.data.gov.uk/id/local-authority/29UP,Tonbridge & Malling Borough Council,2/15/2023,0032010077/1,32010077, 192.78,KM Media Group Ltd,00053900,,Advertising General,Development Management,A01ABZ99944216,320003482
http://statistics.data.gov.uk/id/local-authority/29UP,Tonbridge & Malling Borough Council,2/15/2023,0041035175/3,41035175, 556.60,Morgan Hunt UK Ltd,01086900,,Temporary Staff,Finance Sals&Overheads,D01AFDF1111300,
http://statistics.data.gov.uk/id/local-authority/29UP,Tonbridge & Malling Borough Council,2/20/2023,0041035185/1,41035185, 19.95,WorldPay Ltd,01402000,991280207,Credit Card Commission,Banking Arrangements,D43QK000044082,
http://statistics.data.gov.uk/id/local-authority/29UP,Tonbridge & Malling Borough Council,2/20/2023,0041035186/1,41035186, 509.00,West Kent YMCA,00244300,,Contribution from Other Bodies,Homelessness,C01AACV1995001,
http://statistics.data.gov.uk/id/local-authority/29UP,Tonbridge & Malling Borough Council,2/22/2023,0011045633/1,11045633, 316.00,BML Building Services Ltd,01505000,,BRREP Window/door repairs,PC - General,M15JAP20001919,110069780
http://statistics.data.gov.uk/id/local-authority/29UP,Tonbridge & Malling Borough Council,2/22/2023,0011045668/3,11045668, 155.88,TwoFold Limited,00518000,,Purchases,Printing,D22GA000040101,
http://statistics.data.gov.uk/id/local-authority/29UP,Tonbridge & Malling Borough Council,2/22/2023,0011045669/3,11045669, 215.52,Initial Washroom Hygiene,00048300,,Laundry - Roller Towels,Cleaning & Security,D21FD000042003,
http://statistics.data.gov.uk/id/local-authority/29UP,Tonbridge & Malling Borough Council,2/22/2023,0011045670/3,11045670, 250.54,Thomas Fattorini Ltd,00101500,,Other Expenses,Mayoral & Other Member Support,D29LX000048010,
http://statistics.data.gov.uk/id/local-authority/29UP,Tonbridge & Malling Borough Council,2/22/2023,0011045671/1,11045671, 523.37,KCS,00054200,,Estate Management Charge,Land Review,D40PS000020400,
http://statistics.data.gov.uk/id/local-authority/29UP,Tonbridge & Malling Borough Council,2/22/2023,0011045672/1,11045672, 11.83,REDACTED PERSONAL DATA,01040400,,Other Expenses,Ukrainian Refugee Assistance,D54UA000048010,
http://statistics.data.gov.uk/id/local-authority/29UP,Tonbridge & Malling Borough Council,2/22/2023,0011045675/1,11045675, 576.00,BML Building Services Ltd,01505000,,BRREP Window/door repairs,Larkfield Leisure Centre,M15HDP20001919,110070055
http://statistics.data.gov.uk/id/local-authority/29UP,Tonbridge & Malling Borough Council,2/22/2023,0011045676/1,11045676, 96.39,KM Media Group Ltd,00053900,,Advertising General,Licences - Fee Paying,H27SHZ99944216,110070013
http://statistics.data.gov.uk/id/local-authority/29UP,Tonbridge & Malling Borough Council,2/22/2023,0011045677/1,11045677, 774.00,Loxton Installations Ltd,01278800,,BRREP Plant renewals,Larkfield Leisure Centre,M15HDP20001909,110070011
http://statistics.data.gov.uk/id/local-authority/29UP,Tonbridge & Malling Borough Council,2/22/2023,0011045678/1,11045678, 680.00,G C Industrial Heating Services,00578100,,BRREP Plant renewals,Tonbridge Swimming Pool,M15HBP20001909,110070059
http://statistics.data.gov.uk/id/local-authority/29UP,Tonbridge & Malling Borough Council,2/22/2023,0012008626/1,12008626, 720.00,3C Technology Limited,00997700,,Initial Furniture & Equipment,Capital Renewals IT,P06FBFB1009906,410032343
http://statistics.data.gov.uk/id/local-authority/29UP,Tonbridge & Malling Borough Council,2/22/2023,0012008627/1,12008627, 1223.75,Idox Software Ltd,00962400,,Software Hire & Support,Information Technology,D27KD000044059,410032328
http://statistics.data.gov.uk/id/local-authority/29UP,Tonbridge & Malling Borough Council,2/22/2023,0012008627/2,12008627, 1251.65,Idox Software Ltd,00962400,,Software Hire & Support,Information Technology,D27KD000044059,410032328
http://statistics.data.gov.uk/id/local-authority/29UP,Tonbridge & Malling Borough Council,2/22/2023,0012008628/1,12008628, 1001.25,Idox Software Ltd,00962400,,Software Hire & Support,Information Technology,D27KD000044059,410032328
http://statistics.data.gov.uk/id/local-authority/29UP,Tonbridge & Malling Borough Council,2/22/2023,0012008628/2,12008628, 998.35,Idox Software Ltd,00962400,,Software Hire & Support,Information Technology,D27KD000044059,410032328
http://statistics.data.gov.uk/id/local-authority/29UP,Tonbridge & Malling Borough Council,2/22/2023,0012008629/1,12008629, 600.00,Idox Software Ltd,00962400,,Software Hire & Support,Information Technology,D27KD000044059,410032345
http://statistics.data.gov.uk/id/local-authority/29UP,Tonbridge & Malling Borough Council,2/22/2023,0012008630/1,12008630, 0.08,KCS,00054200,,Copy Charges,Multi Function Devices,D22GB000040125,
http://statistics.data.gov.uk/id/local-authority/29UP,Tonbridge & Malling Borough Council,2/22/2023,0012008631/1,12008631, 5.18,KCS,00054200,,Copy Charges,Multi Function Devices,D22GB000040125,
http://statistics.data.gov.uk/id/local-authority/29UP,Tonbridge & Malling Borough Council,2/22/2023,0012008632/1,12008632, 95.36,KCS,00054200,,Copy Charges,Multi Function Devices,D22GB000040125,
http://statistics.data.gov.uk/id/local-authority/29UP,Tonbridge & Malling Borough Council,2/22/2023,0012008633/1,12008633, 3.03,KCS,00054200,,Copy Charges,Multi Function Devices,D22GB000040125,
http://statistics.data.gov.uk/id/local-authority/29UP,Tonbridge & Malling Borough Council,2/22/2023,0012008634/1,12008634, 82.90,KCS,00054200,,Copy Charges,Multi Function Devices,D22GB000040125,
http://statistics.data.gov.uk/id/local-authority/29UP,Tonbridge & Malling Borough Council,2/22/2023,0012008635/1,12008635, 0.07,KCS,00054200,,Copy Charges,Multi Function Devices,D22GB000040125,
http://statistics.data.gov.uk/id/local-authority/29UP,Tonbridge & Malling Borough Council,2/22/2023,0012008636/1,12008636, 4.55,KCS,00054200,,Copy Charges,Multi Function Devices,D22GB000040125,
http://statistics.data.gov.uk/id/local-authority/29UP,Tonbridge & Malling Borough Council,2/22/2023,0012008637/1,12008637, 142.86,KCS,00054200,,Copy Charges,Multi Function Devices,D22GB000040125,
http://statistics.data.gov.uk/id/local-authority/29UP,Tonbridge & Malling Borough Council,2/22/2023,0012008638/1,12008638, 13.41,KCS,00054200,,Copy Charges,Multi Function Devices,D22GB000040125,
http://statistics.data.gov.uk/id/local-authority/29UP,Tonbridge & Malling Borough Council,2/22/2023,0012008639/1,12008639, 18246.28,Phoenix Software Ltd,00077400,755349015,Software Hire & Support,Information Technology,D27KD000044059,
http://statistics.data.gov.uk/id/local-authority/29UP,Tonbridge & Malling Borough Council,2/22/2023,0012008640/1,12008640, 395.87,Siteimprove Ltd,00961700,,Subscriptions,Information Technology,D27KD000047002,
http://statistics.data.gov.uk/id/local-authority/29UP,Tonbridge & Malling Borough Council,2/22/2023,0012008641/1,12008641, 1438.80,TeamViewer Germany GmbH,01784500,245838579,Software Hire & Support,Information Technology,D27KD000044059,410032346
http://statistics.data.gov.uk/id/local-authority/29UP,Tonbridge & Malling Borough Council,2/22/2023,0012008642/1,12008642, 74.90,CCS Media Ltd,00018000,,Purchases,Information Technology,D27KD000040101,410032350
http://statistics.data.gov.uk/id/local-authority/29UP,Tonbridge & Malling Borough Council,2/22/2023,0012008643/1,12008643, 245.36,NEC Software Solutions UK Ltd,01073900,202159745,Software Hire & Support,Information Technology,D27KD000044059,410032330
http://statistics.data.gov.uk/id/local-authority/29UP,Tonbridge & Malling Borough Council,2/22/2023,0012008644/1,12008644, 46558.07,NEC Software Solutions UK Ltd,01073900,202159745,Software Hire & Support,Information Technology,D27KD000044059,410032331
http://statistics.data.gov.uk/id/local-authority/29UP,Tonbridge & Malling Borough Council,2/22/2023,0012008645/1,12008645, 4300.72,NEC Software Solutions UK Ltd,01073900,202159745,Software Hire & Support,Information Technology,D27KD000044059,410032332
http://statistics.data.gov.uk/id/local-authority/29UP,Tonbridge & Malling Borough Council,2/22/2023,0012008646/1,12008646, 7218.16,NEC Software Solutions UK Ltd,01073900,202159745,Software Hire & Support,Information Technology,D27KD000044059,410032333
http://statistics.data.gov.uk/id/local-authority/29UP,Tonbridge & Malling Borough Council,2/22/2023,0012008647/1,12008647, 1829.32,NEC Software Solutions UK Ltd,01073900,202159745,Software Hire & Support,Information Technology,D27KD000044059,410032334
http://statistics.data.gov.uk/id/local-authority/29UP,Tonbridge & Malling Borough Council,2/22/2023,0021038420/1,21038420, 50.00,South East Water Ltd,01330300,,Maintenance of Grounds,Haysden Country Park,B22LC000020402,210057092
http://statistics.data.gov.uk/id/local-authority/29UP,Tonbridge & Malling Borough Council,2/22/2023,0021038421/1,21038421, 900.00,The Play Inspection Company,01242100,,Maintenance of Play Equipment,Open Spaces & Amenity Areas,B22LE000020503,210056994
http://statistics.data.gov.uk/id/local-authority/29UP,Tonbridge & Malling Borough Council,2/22/2023,0021038422/1,21038422, 1676.80,Borough Green Chamber of Commerce,01350200,,Borough Christmas Lighting,Eco Dev & Reg Boro Chris Light,D52TE000047014,
http://statistics.data.gov.uk/id/local-authority/29UP,Tonbridge & Malling Borough Council,2/22/2023,0021038423/3,21038423, 300.05,KCC - L.A.S.E.R Commercial Services ,00184300,,Electricity,Open Spaces & Amenity Areas,B22LE000021002,
http://statistics.data.gov.uk/id/local-authority/29UP,Tonbridge & Malling Borough Council,2/22/2023,0021038424/1,21038424, 32.00,Kent Highways Services,00320900,,Purchases,Tonbridge Castle Grounds,B22LB000040101,210057111
http://statistics.data.gov.uk/id/local-authority/29UP,Tonbridge & Malling Borough Council,2/22/2023,0021038425/1,21038425, 685.66,Atlas Facilities Managment Limited ,01075900,,Gates / Security,Patrolling,B22LF000044017,210056716
http://statistics.data.gov.uk/id/local-authority/29UP,Tonbridge & Malling Borough Council,2/22/2023,0022027456/1,22027456, 798.00,Town & Country Housing Group,01385400,,Other Expenses,Disabled Facilities Grant Mand,P03AC000009908,
http://statistics.data.gov.uk/id/local-authority/29UP,Tonbridge & Malling Borough Council,2/22/2023,0022027457/1,22027457, 6000.00,Dolphin Stairlifts,00698900,,Other Expenses,Disabled Facilities Grant Mand,P03AC000009908,
http://statistics.data.gov.uk/id/local-authority/29UP,Tonbridge & Malling Borough Council,2/22/2023,0022027458/1,22027458, 7564.85,Urbaser LTD,01718800,,Contract Payments,Refuse Collection,H20SA000054001,
http://statistics.data.gov.uk/id/local-authority/29UP,Tonbridge & Malling Borough Council,2/22/2023,0022027458/2,22027458, 4514.37,Urbaser LTD,01718800,,Contract Payments,Street Scene,H23SD000054001,
http://statistics.data.gov.uk/id/local-authority/29UP,Tonbridge & Malling Borough Council,2/22/2023,0022027458/3,22027458, 479.23,Urbaser LTD,01718800,,Contract Payments,Dry Recycling,H34SR000054001,
http://statistics.data.gov.uk/id/local-authority/29UP,Tonbridge & Malling Borough Council,2/22/2023,0022027458/4,22027458, 161.39,Urbaser LTD,01718800,,Contract Payments,Food Recycling,H34SS000054001,
http://statistics.data.gov.uk/id/local-authority/29UP,Tonbridge & Malling Borough Council,2/22/2023,0022027458/5,22027458, 13388.09,Urbaser LTD,01718800,,Contract Payments,Garden Waste Recycling,H34ST000054001,
http://statistics.data.gov.uk/id/local-authority/29UP,Tonbridge & Malling Borough Council,2/22/2023,0022027459/1,22027459, 6463.09,Urbaser LTD,01718800,,Contract Payments,Refuse Collection,H20SA000054001,
http://statistics.data.gov.uk/id/local-authority/29UP,Tonbridge & Malling Borough Council,2/22/2023,0022027459/2,22027459, 3809.59,Urbaser LTD,01718800,,Contract Payments,Street Scene,H23SD000054001,
http://statistics.data.gov.uk/id/local-authority/29UP,Tonbridge & Malling Borough Council,2/22/2023,0022027459/3,22027459, 442.11,Urbaser LTD,01718800,,Contract Payments,Dry Recycling,H34SR000054001,
http://statistics.data.gov.uk/id/local-authority/29UP,Tonbridge & Malling Borough Council,2/22/2023,0022027459/4,22027459, 123.54,Urbaser LTD,01718800,,Contract Payments,Food Recycling,H34SS000054001,
http://statistics.data.gov.uk/id/local-authority/29UP,Tonbridge & Malling Borough Council,2/22/2023,0022027459/5,22027459, 13363.65,Urbaser LTD,01718800,,Contract Payments,Garden Waste Recycling,H34ST000054001,
http://statistics.data.gov.uk/id/local-authority/29UP,Tonbridge & Malling Borough Council,2/22/2023,0022027460/1,22027460, 6823.94,Urbaser LTD,01718800,,Contract Payments,Refuse Collection,H20SA000054001,
http://statistics.data.gov.uk/id/local-authority/29UP,Tonbridge & Malling Borough Council,2/22/2023,0022027460/2,22027460, 16430.00,Urbaser LTD,01718800,,Contract Payments,Street Scene,H23SD000054001,
http://statistics.data.gov.uk/id/local-authority/29UP,Tonbridge & Malling Borough Council,2/22/2023,0022027460/3,22027460, 328.79,Urbaser LTD,01718800,,Contract Payments,Dry Recycling,H34SR000054001,
http://statistics.data.gov.uk/id/local-authority/29UP,Tonbridge & Malling Borough Council,2/22/2023,0022027460/4,22027460, 91.47,Urbaser LTD,01718800,,Contract Payments,Food Recycling,H34SS000054001,
http://statistics.data.gov.uk/id/local-authority/29UP,Tonbridge & Malling Borough Council,2/22/2023,0022027460/5,22027460, 13391.50,Urbaser LTD,01718800,,Contract Payments,Garden Waste Recycling,H34ST000054001,
http://statistics.data.gov.uk/id/local-authority/29UP,Tonbridge & Malling Borough Council,2/22/2023,0022027461/1,22027461, 38741.20,Urbaser LTD,01718800,,Payment re Prev Yrs Cred Acc,Sundry Creditors SSLTS,J80TL000001101,
http://statistics.data.gov.uk/id/local-authority/29UP,Tonbridge & Malling Borough Council,2/22/2023,0022027462/1,22027462, 39602.66,Urbaser LTD,01718800,,Payment re Prev Yrs Cred Acc,Sundry Creditors SSLTS,J80TL000001101,
http://statistics.data.gov.uk/id/local-authority/29UP,Tonbridge & Malling Borough Council,2/22/2023,0022027463/1,22027463, 360.47,Clarion Housing,01078200,,Homelessness Reduction Initiat,Homelessness,C01AA000048019,
http://statistics.data.gov.uk/id/local-authority/29UP,Tonbridge & Malling Borough Council,2/22/2023,0022027464/1,22027464, 3.00,Tonbridge & Malling Borough Council,00103700,,Other Expenses,Housing Assistance,P03AD000009908,
http://statistics.data.gov.uk/id/local-authority/29UP,Tonbridge & Malling Borough Council,2/22/2023,0022027465/1,22027465, 3845.00,REDACTED PERSONAL DATA,01887200,,Other Expenses,Housing Assistance,P03AD000009908,
http://statistics.data.gov.uk/id/local-authority/29UP,Tonbridge & Malling Borough Council,2/22/2023,0022027466/1,22027466, 3500.00,REDACTED PERSONAL DATA,01887300,,Other Expenses,Housing Assistance,P03AD000009908,
http://statistics.data.gov.uk/id/local-authority/29UP,Tonbridge & Malling Borough Council,2/22/2023,0022027467/1,22027467, 3.00,Tonbridge & Malling Borough Council,00103700,,Other Expenses,Housing Assistance,P03AD000009908,
http://statistics.data.gov.uk/id/local-authority/29UP,Tonbridge & Malling Borough Council,2/22/2023,0022027468/1,22027468, 32.36,South East Water Ltd,00572200,,Water Charges (Metered),Homelessness,C01AAMAUN24001,
http://statistics.data.gov.uk/id/local-authority/29UP,Tonbridge & Malling Borough Council,2/22/2023,0022027469/1,22027469, 32.36,South East Water Ltd,00572200,,Water Charges (Metered),Homelessness,C01AAMAUN24001,
http://statistics.data.gov.uk/id/local-authority/29UP,Tonbridge & Malling Borough Council,2/22/2023,0022027470/1,22027470, 59.90,British Telecommunications Plc,00012800,,Purchases,Homelessness,C01AATNPR40101,
http://statistics.data.gov.uk/id/local-authority/29UP,Tonbridge & Malling Borough Council,2/22/2023,0022027471/1,22027471, 39.07,Bulb Energy Ltd,01799000,214948301,Electricity,Homelessness,C01AA000021002,
http://statistics.data.gov.uk/id/local-authority/29UP,Tonbridge & Malling Borough Council,2/22/2023,0022027472/1,22027472, 214.00,Imagink LTD,01513300,,Initial Furniture & Equipment,Air Quality Monitoring Station,P02EN000009906,220003305
http://statistics.data.gov.uk/id/local-authority/29UP,Tonbridge & Malling Borough Council,2/22/2023,0022027473/1,22027473, 169.00,Imagink LTD,01513300,,Initial Furniture & Equipment,Air Quality Monitoring Station,P02EN000009906,220003306
http://statistics.data.gov.uk/id/local-authority/29UP,Tonbridge & Malling Borough Council,2/22/2023,0022027474/1,22027474, 39.28,Maidstone Borough Council,01173700,,Council Tax,Homelessness,C01AA000023002,
http://statistics.data.gov.uk/id/local-authority/29UP,Tonbridge & Malling Borough Council,2/22/2023,0022027475/1,22027475, 1631.40,Lucy and Martin Recycling LTD,01694200,,Vehicle Licences,Dry Recycling,H34SR000030105,
http://statistics.data.gov.uk/id/local-authority/29UP,Tonbridge & Malling Borough Council,2/22/2023,0022027476/1,22027476, 62262.00,Look Ahead,01746900,,Professional Fees,Homelessness,C01AAROUG44001,
http://statistics.data.gov.uk/id/local-authority/29UP,Tonbridge & Malling Borough Council,2/22/2023,0022027477/1,22027477, 35729.00,Look Ahead,01746900,,Professional Fees,Homelessness,C01AAROUG44001,
http://statistics.data.gov.uk/id/local-authority/29UP,Tonbridge & Malling Borough Council,2/22/2023,0022027478/1,22027478, 459.00,Kent Accommodation Ltd,01722000,,Professional Fees,Homelessness,C01AA000044001,
http://statistics.data.gov.uk/id/local-authority/29UP,Tonbridge & Malling Borough Council,2/22/2023,0022027479/1,22027479, 250.00,Kent Accommodation Ltd,01722000,,Professional Fees,Homelessness,C01AA000044001,
http://statistics.data.gov.uk/id/local-authority/29UP,Tonbridge & Malling Borough Council,2/22/2023,0022027480/1,22027480, 325.00,Kent Accommodation Ltd,01722000,,Professional Fees,Homelessness,C01AA000044001,
http://statistics.data.gov.uk/id/local-authority/29UP,Tonbridge & Malling Borough Council,2/22/2023,0022027481/1,22027481, 250.00,Kent Accommodation Ltd,01722000,,Professional Fees,Homelessness,C01AA000044001,
http://statistics.data.gov.uk/id/local-authority/29UP,Tonbridge & Malling Borough Council,2/22/2023,0022027482/1,22027482, 5751.00,Kent Accommodation Ltd,01722000,,Temporary Accommodation,Homelessness,C01AA000044051,
http://statistics.data.gov.uk/id/local-authority/29UP,Tonbridge & Malling Borough Council,2/22/2023,0022027483/1,22027483, 4479.71,Clarion Housing,01776300,,Temporary Accommodation,Homelessness,C01AA000044051,
http://statistics.data.gov.uk/id/local-authority/29UP,Tonbridge & Malling Borough Council,2/22/2023,0022027484/1,22027484, 2263.93,Clarion Housing,01078200,,Contribution from Other Bodies,Homelessness,C01AACV1995001,
http://statistics.data.gov.uk/id/local-authority/29UP,Tonbridge & Malling Borough Council,2/22/2023,0022027485/1,22027485, 5512.73,Accessible Solutions LTD,01539700,,Other Expenses,Disabled Facilities Grant Mand,P03AC000009908,
http://statistics.data.gov.uk/id/local-authority/29UP,Tonbridge & Malling Borough Council,2/22/2023,0022027486/3,22027486, 1411.11,KCC - L.A.S.E.R Commercial Services ,00184300,,Electricity,Public Conveniences,H22SCH00421002,
http://statistics.data.gov.uk/id/local-authority/29UP,Tonbridge & Malling Borough Council,2/22/2023,0022027487/1,22027487, 112.00,Kent County Council,00322500,,Initial Furniture & Equipment,Air Quality Monitoring Station,P02EN000009906,220003257
http://statistics.data.gov.uk/id/local-authority/29UP,Tonbridge & Malling Borough Council,2/22/2023,0022027488/3,22027488, 545.00,Kent County Council,00322500,,Contract Payments,Street Scene,H23SD000054001,
http://statistics.data.gov.uk/id/local-authority/29UP,Tonbridge & Malling Borough Council,2/22/2023,0022027489/1,22027489, 900.00,Kent County Council,00322500,,Initial Furniture & Equipment,Air Quality Monitoring Station,P02EN000009906,220003264
http://statistics.data.gov.uk/id/local-authority/29UP,Tonbridge & Malling Borough Council,2/22/2023,0031019263/1,31019263, 62.50,MC Products UK Ltd,01883100,428973802,Uniforms,Parking Off-Street,E10HA000042002,310042964
http://statistics.data.gov.uk/id/local-authority/29UP,Tonbridge & Malling Borough Council,2/22/2023,0031019263/2,31019263, 10.00,MC Products UK Ltd,01883100,428973802,Uniforms,Parking Off-Street,E10HA000042002,310042964
http://statistics.data.gov.uk/id/local-authority/29UP,Tonbridge & Malling Borough Council,2/22/2023,0031019264/1,31019264, 170.85,British Telecommunications Plc,00012800,,Maintenance - General,Security Services Management,E09GA000040135,
http://statistics.data.gov.uk/id/local-authority/29UP,Tonbridge & Malling Borough Council,2/22/2023,0031019265/1,31019265, 90.00,Kent Security & Response Ltd,01887400,267322989,Professional Fees,Parking Off-Street,E10HA000044001,
http://statistics.data.gov.uk/id/local-authority/29UP,Tonbridge & Malling Borough Council,2/22/2023,0031019266/1,31019266, 5.97,KelticLimited,01000400,,Uniforms,Parking Off-Street,E10HA000042002,310042970
http://statistics.data.gov.uk/id/local-authority/29UP,Tonbridge & Malling Borough Council,2/22/2023,0031019266/10,31019266, 26.85,KelticLimited,01000400,,Uniforms,Parking Off-Street,E10HA000042002,310042970
http://statistics.data.gov.uk/id/local-authority/29UP,Tonbridge & Malling Borough Council,2/22/2023,0031019266/11,31019266, 23.58,KelticLimited,01000400,,Uniforms,Parking On-Street,E10HD000042002,310042970
http://statistics.data.gov.uk/id/local-authority/29UP,Tonbridge & Malling Borough Council,2/22/2023,0031019266/12,31019266, 17.90,KelticLimited,01000400,,Uniforms,Parking On-Street,E10HD000042002,310042970
http://statistics.data.gov.uk/id/local-authority/29UP,Tonbridge & Malling Borough Council,2/22/2023,0031019266/13,31019266, 6.78,KelticLimited,01000400,,Uniforms,Parking On-Street,E10HD000042002,310042970
http://statistics.data.gov.uk/id/local-authority/29UP,Tonbridge & Malling Borough Council,2/22/2023,0031019266/14,31019266, 27.98,KelticLimited,01000400,,Uniforms,Parking On-Street,E10HD000042002,310042970
http://statistics.data.gov.uk/id/local-authority/29UP,Tonbridge & Malling Borough Council,2/22/2023,0031019266/15,31019266, 13.14,KelticLimited,01000400,,Uniforms,Parking On-Street,E10HD000042002,310042970
http://statistics.data.gov.uk/id/local-authority/29UP,Tonbridge & Malling Borough Council,2/22/2023,0031019266/16,31019266, 7.16,KelticLimited,01000400,,Uniforms,Parking On-Street,E10HD000042002,310042970
http://statistics.data.gov.uk/id/local-authority/29UP,Tonbridge & Malling Borough Council,2/22/2023,0031019266/17,31019266, 19.75,KelticLimited,01000400,,Uniforms,Parking On-Street,E10HD000042002,310042970
http://statistics.data.gov.uk/id/local-authority/29UP,Tonbridge & Malling Borough Council,2/22/2023,0031019266/18,31019266, 35.98,KelticLimited,01000400,,Uniforms,Parking On-Street,E10HD000042002,310042970
http://statistics.data.gov.uk/id/local-authority/29UP,Tonbridge & Malling Borough Council,2/22/2023,0031019266/19,31019266, 26.36,KelticLimited,01000400,,Uniforms,Parking On-Street,E10HD000042002,310042970
http://statistics.data.gov.uk/id/local-authority/29UP,Tonbridge & Malling Borough Council,2/22/2023,0031019266/2,31019266, 39.54,KelticLimited,01000400,,Uniforms,Parking Off-Street,E10HA000042002,310042970
http://statistics.data.gov.uk/id/local-authority/29UP,Tonbridge & Malling Borough Council,2/22/2023,0031019266/20,31019266, 3.98,KelticLimited,01000400,,Uniforms,Parking On-Street,E10HD000042002,310042970
http://statistics.data.gov.uk/id/local-authority/29UP,Tonbridge & Malling Borough Council,2/22/2023,0031019266/3,31019266, 27.65,KelticLimited,01000400,,Uniforms,Parking Off-Street,E10HA000042002,310042970
http://statistics.data.gov.uk/id/local-authority/29UP,Tonbridge & Malling Borough Council,2/22/2023,0031019266/4,31019266, 53.97,KelticLimited,01000400,,Uniforms,Parking Off-Street,E10HA000042002,310042970
http://statistics.data.gov.uk/id/local-authority/29UP,Tonbridge & Malling Borough Council,2/22/2023,0031019266/5,31019266, 10.74,KelticLimited,01000400,,Uniforms,Parking Off-Street,E10HA000042002,310042970
http://statistics.data.gov.uk/id/local-authority/29UP,Tonbridge & Malling Borough Council,2/22/2023,0031019266/6,31019266, 19.71,KelticLimited,01000400,,Uniforms,Parking Off-Street,E10HA000042002,310042970
http://statistics.data.gov.uk/id/local-authority/29UP,Tonbridge & Malling Borough Council,2/22/2023,0031019266/7,31019266, 41.97,KelticLimited,01000400,,Uniforms,Parking Off-Street,E10HA000042002,310042970
http://statistics.data.gov.uk/id/local-authority/29UP,Tonbridge & Malling Borough Council,2/22/2023,0031019266/8,31019266, 10.17,KelticLimited,01000400,,Uniforms,Parking Off-Street,E10HA000042002,310042970
http://statistics.data.gov.uk/id/local-authority/29UP,Tonbridge & Malling Borough Council,2/22/2023,0031019266/9,31019266, 35.37,KelticLimited,01000400,,Uniforms,Parking Off-Street,E10HA000042002,310042970
http://statistics.data.gov.uk/id/local-authority/29UP,Tonbridge & Malling Borough Council,2/22/2023,0031019267/1,31019267, 250.00,Arnold & Court Ltd,01411300,,Winter Maintenance,Parking Off-Street,E10HA000020701,310042952
http://statistics.data.gov.uk/id/local-authority/29UP,Tonbridge & Malling Borough Council,2/22/2023,0031019268/1,31019268, 1350.00,Arnold & Court Ltd,01411300,,Winter Maintenance,Parking Off-Street,E10HA000020701,310042952
http://statistics.data.gov.uk/id/local-authority/29UP,Tonbridge & Malling Borough Council,2/22/2023,0031019269/1,31019269, 200.00,Arnold & Court Ltd,01411300,,Premises Repairs & Maintenance,Parking Off-Street,E10HA000020601,310042962
http://statistics.data.gov.uk/id/local-authority/29UP,Tonbridge & Malling Borough Council,2/22/2023,0031019269/2,31019269, 50.00,Arnold & Court Ltd,01411300,,Premises Repairs & Maintenance,Parking Off-Street,E10HA000020601,310042962
http://statistics.data.gov.uk/id/local-authority/29UP,Tonbridge & Malling Borough Council,2/22/2023,0031019270/1,31019270, 575.00,Arnold & Court Ltd,01411300,,Bridge Maintenance,Open Spaces & Amenity Areas,B22LE000020505,210057104
http://statistics.data.gov.uk/id/local-authority/29UP,Tonbridge & Malling Borough Council,2/22/2023,0031019271/1,31019271, 250.00,Arnold & Court Ltd,01411300,,Repair & Mtce of Fixed Plant,Boro Highways & Emergency Oper,E01AA000020501,310042967
http://statistics.data.gov.uk/id/local-authority/29UP,Tonbridge & Malling Borough Council,2/22/2023,0031019272/1,31019272, 450.00,Arnold & Court Ltd,01411300,,Premises Repairs & Maintenance,Parking Off-Street,E10HA000020601,310042948
http://statistics.data.gov.uk/id/local-authority/29UP,Tonbridge & Malling Borough Council,2/22/2023,0031019273/1,31019273, 2000.00,Arnold & Court Ltd,01411300,,Winter Maintenance,Parking Off-Street,E10HA000020701,310042960
http://statistics.data.gov.uk/id/local-authority/29UP,Tonbridge & Malling Borough Council,2/22/2023,0031019274/1,31019274, 850.00,Arnold & Court Ltd,01411300,,Maintenance of Grounds,Haysden Country Park,B22LCCARP20402,210057095
http://statistics.data.gov.uk/id/local-authority/29UP,Tonbridge & Malling Borough Council,2/22/2023,0031019275/1,31019275, 400.00,Arnold & Court Ltd,01411300,,Contract Payments,Boro Drainage & Land Drainage,E20MA000054001,320003461
http://statistics.data.gov.uk/id/local-authority/29UP,Tonbridge & Malling Borough Council,2/22/2023,0031019276/1,31019276, 225.00,DSSL Group Ltd,01839500,,CCTV Monitoring Station,Security Services Management,E09GA000051020,310042973
http://statistics.data.gov.uk/id/local-authority/29UP,Tonbridge & Malling Borough Council,2/22/2023,0031019277/1,31019277, 4500.00,DSSL Group Ltd,01839500,,CCTV Monitoring Station,Security Services Management,E09GA000051020,310042956
http://statistics.data.gov.uk/id/local-authority/29UP,Tonbridge & Malling Borough Council,2/22/2023,0031019278/1,31019278, 4500.00,DSSL Group Ltd,01839500,,Contract Payments,Cap Ren CCTV,P01BA000009904,310042963
http://statistics.data.gov.uk/id/local-authority/29UP,Tonbridge & Malling Borough Council,2/22/2023,0031019279/1,31019279, 2250.00,DSSL Group Ltd,01839500,,CCTV Monitoring Station,Security Services Management,E09GA000051020,310042966
http://statistics.data.gov.uk/id/local-authority/29UP,Tonbridge & Malling Borough Council,2/22/2023,0032010076/3,32010076, 1526.50,Carrington West Limited,01844500,,Temporary Staff,Planning Sals&Overheads,D01AJDJ0111300,
http://statistics.data.gov.uk/id/local-authority/29UP,Tonbridge & Malling Borough Council,2/22/2023,0032010078/1,32010078, 7500.00,Nathaniel Lichfield & Partners Ltd,00070000,,Professional Fees,Planning Policy,A01AF000044001,320003339
http://statistics.data.gov.uk/id/local-authority/29UP,Tonbridge & Malling Borough Council,2/22/2023,0041035188/1,41035188, 1750.00,CIPFA Business Limited,01216800,,Reference Books & Publications,Finance Sals&Overheads,D01AFDF0243010,410032310
http://statistics.data.gov.uk/id/local-authority/29UP,Tonbridge & Malling Borough Council,2/22/2023,0041035189/1,41035189, 80.00,WorldPay Ltd,01402000,991280207,Credit Card Commission,Banking Arrangements,D43QK000044082,
http://statistics.data.gov.uk/id/local-authority/29UP,Tonbridge & Malling Borough Council,2/22/2023,0041035189/2,41035189, 62.24,WorldPay Ltd,01402000,991280207,Credit Card Commission,Banking Arrangements,D43QK000044082,
http://statistics.data.gov.uk/id/local-authority/29UP,Tonbridge & Malling Borough Council,2/22/2023,0041035189/3,41035189, 0.40,WorldPay Ltd,01402000,991280207,Credit Card Commission,Banking Arrangements,D43QK000044082,
http://statistics.data.gov.uk/id/local-authority/29UP,Tonbridge & Malling Borough Council,2/22/2023,0041035190/1,41035190, 80.00,WorldPay Ltd,01402000,991280207,Credit Card Commission,Banking Arrangements,D43QK000044082,
http://statistics.data.gov.uk/id/local-authority/29UP,Tonbridge & Malling Borough Council,2/22/2023,0041035190/2,41035190, 71.20,WorldPay Ltd,01402000,991280207,Credit Card Commission,Banking Arrangements,D43QK000044082,
http://statistics.data.gov.uk/id/local-authority/29UP,Tonbridge & Malling Borough Council,2/22/2023,0041035190/3,41035190, 0.32,WorldPay Ltd,01402000,991280207,Credit Card Commission,Banking Arrangements,D43QK000044082,
http://statistics.data.gov.uk/id/local-authority/29UP,Tonbridge & Malling Borough Council,2/22/2023,0041035191/1,41035191, 80.00,WorldPay Ltd,01402000,991280207,Credit Card Commission,Banking Arrangements,D43QK000044082,
http://statistics.data.gov.uk/id/local-authority/29UP,Tonbridge & Malling Borough Council,2/22/2023,0041035191/2,41035191, 158.24,WorldPay Ltd,01402000,991280207,Credit Card Commission,Banking Arrangements,D43QK000044082,
http://statistics.data.gov.uk/id/local-authority/29UP,Tonbridge & Malling Borough Council,2/22/2023,0041035198/1,41035198, 170.50,KCC re Kent Pension Fund,01282800,,Professional Fees,Public Accountability,D29LR000044001,
http://statistics.data.gov.uk/id/local-authority/29UP,Tonbridge & Malling Borough Council,2/22/2023,0041035199/1,41035199, 925.00,NEC Software Solutions UK Ltd,01073900,202159745,Software Enhancement,Local Revenue & NNDR Collect,D41QA000044063,410032329
http://statistics.data.gov.uk/id/local-authority/29UP,Tonbridge & Malling Borough Council,2/22/2023,0041035200/1,41035200, 450.00,Airey Consultancy Services Ltd,01760800,,Contract Services,Finance Sals&Overheads,D01AF000044005,
http://statistics.data.gov.uk/id/local-authority/29UP,Tonbridge & Malling Borough Council,2/22/2023,0041035200/2,41035200, 450.00,Airey Consultancy Services Ltd,01760800,,Contract Services,Finance Sals&Overheads,D01AF000044005,
http://statistics.data.gov.uk/id/local-authority/29UP,Tonbridge & Malling Borough Council,2/22/2023,0041035201/1,41035201, 556.60,Morgan Hunt UK Ltd,01086900,,Temporary Staff,Finance Sals&Overheads,D01AFDF1111300,
http://statistics.data.gov.uk/id/local-authority/29UP,Tonbridge & Malling Borough Council,2/22/2023,0041035202/1,41035202, 7110.44,Maidstone Borough Council,01173700,,Bailiffs Commission,Local Revenue & NNDR Collect,D41QA000044075,
http://statistics.data.gov.uk/id/local-authority/29UP,Tonbridge & Malling Borough Council,2/22/2023,0041035203/1,41035203, 1393.48,Rundle & Co Ltd,00087200,,Bailiffs Commission,Local Revenue & NNDR Collect,D41QA000044075,
http://statistics.data.gov.uk/id/local-authority/29UP,Tonbridge & Malling Borough Council,2/22/2023,0041035204/1,41035204, 728.16,Rundle & Co Ltd,00087200,,Bailiffs Commission,Local Revenue & NNDR Collect,D41QA000044075,
http://statistics.data.gov.uk/id/local-authority/29UP,Tonbridge & Malling Borough Council,2/22/2023,0041035205/1,41035205, 1416.64,Rundle & Co Ltd,00087200,,Bailiffs Commission,Local Revenue & NNDR Collect,D41QA000044075,
http://statistics.data.gov.uk/id/local-authority/29UP,Tonbridge & Malling Borough Council,2/22/2023,0041035206/1,41035206, 611.79,Rundle & Co Ltd,00087200,,Bailiffs Commission,Local Revenue & NNDR Collect,D41QA000044075,
http://statistics.data.gov.uk/id/local-authority/29UP,Tonbridge & Malling Borough Council,2/22/2023,0041035209/1,41035209, 236.30,National Westminster Bank Plc,00069400,,Bank Charges,Banking Arrangements,D43QK000044222,
http://statistics.data.gov.uk/id/local-authority/29UP,Tonbridge & Malling Borough Council,2/22/2023,0041035210/1,41035210, 2353.00,H.M. Revenue & Customs,00048400,,Levy Payment,Apprenticeship Scheme,D10DE000013700,
http://statistics.data.gov.uk/id/local-authority/29UP,Tonbridge & Malling Borough Council,2/22/2023,0041035214/1,41035214, 68.00,National Westminster Bank Plc,00069400,,Bank Charges,Banking Arrangements,D43QK000044222,
http://statistics.data.gov.uk/id/local-authority/29UP,Tonbridge & Malling Borough Council,2/22/2023,0051008782/1,51008782, 18.00,Commercial Services Kent Ltd,01655800,,Criminal Records Bureau Checks,Recruitment Expenses,D10DA000013180,
http://statistics.data.gov.uk/id/local-authority/29UP,Tonbridge & Malling Borough Council,2/22/2023,0051008782/2,51008782, 7.50,Commercial Services Kent Ltd,01655800,,Criminal Records Bureau Checks,Recruitment Expenses,D10DA000013180,
http://statistics.data.gov.uk/id/local-authority/29UP,Tonbridge & Malling Borough Council,2/22/2023,0051008783/1,51008783, 625.99,Sevenoaks District Council,00089300,,Ext Fees/Prof & Tech,Training,D10DCDV0713561,
http://statistics.data.gov.uk/id/local-authority/29UP,Tonbridge & Malling Borough Council,2/22/2023,0051008784/1,51008784, 166.68,The Association of Building Engineers,00304300,,Ext Fees/Prof & Tech,Training,D10DCDJ0213561,510010613
http://statistics.data.gov.uk/id/local-authority/29UP,Tonbridge & Malling Borough Council,2/22/2023,0051008785/1,51008785, 95.00,Irrv,00050300,,Ext Fees/Prof & Tech,Training,D10DCDF1113561,510010611
http://statistics.data.gov.uk/id/local-authority/29UP,Tonbridge & Malling Borough Council,2/24/2023,0041035216/1,41035216, 500.00,PCC St Mary Hadlow,01835200,,Charitable / Voluntary Organis,Grants & Payments to Vol Orgn,D37PACV1947005,
http://statistics.data.gov.uk/id/local-authority/29UP,Tonbridge & Malling Borough Council,2/24/2023,0041035217/1,41035217, 25000.00,Sevenoaks West Kent Area Mind,01206000,,Charitable / Voluntary Organis,Grants & Payments to Vol Orgn,D37PACV1947005,
http://statistics.data.gov.uk/id/local-authority/29UP,Tonbridge & Malling Borough Council,2/24/2023,0041035218/1,41035218, 4000.00,REDACTED PERSONAL DATA,01864000,,Charitable / Voluntary Organis,Grants & Payments to Vol Orgn,D37PACV1947005,
http://statistics.data.gov.uk/id/local-authority/29UP,Tonbridge & Malling Borough Council,2/24/2023,0041035219/1,41035219, 2193.37,WorldPay ,01568000,,Credit Card Commission,Banking Arrangements,D43QK000044082,
http://statistics.data.gov.uk/id/local-authority/29UP,Tonbridge & Malling Borough Council,2/24/2023,0041035219/2,41035219, 183.39,WorldPay ,01568000,,Credit Card Commission,Banking Arrangements,D43QK000044082,
http://statistics.data.gov.uk/id/local-authority/29UP,Tonbridge & Malling Borough Council,2/27/2023,0041035220/1,41035220, 3950.00,BOP Europe LTD,01886500,,Initial Furniture & Equipment,Capital Renewals Leisure,P05KGBC0709906,
http://statistics.data.gov.uk/id/local-authority/29UP,Tonbridge & Malling Borough Council,2/28/2023,0041035230/2,41035230, 7916141.00,Department for Communities & Local Govt,01601500,,Payment re Prev Yrs Cred Acc,Sundry Creditors Finance,J80TF000001101,
http://statistics.data.gov.uk/id/local-authority/29UP,Tonbridge & Malling Borough Council,2/28/2023,0041035231/1,41035231, 1.46,WorldPay ,01568000,,Credit Card Commission,Banking Arrangements,D43QK000044082,
http://statistics.data.gov.uk/id/local-authority/29UP,Tonbridge & Malling Borough Council,2/28/2023,0041035232/1,41035232, 15.00,WorldPay ,01568000,,Credit Card Commission,Banking Arrangements,D43QK000044082,
http://statistics.data.gov.uk/id/local-authority/29UP,Tonbridge & Malling Borough Council,2/28/2023,0041035233/1,41035233, 168.41,WorldPay ,01568000,,Credit Card Commission,Banking Arrangements,D43QK000044082,
http://statistics.data.gov.uk/id/local-authority/29UP,Tonbridge & Malling Borough Council,2/28/2023,0041035234/1,41035234, 567.27,WorldPay ,01568000,,Credit Card Commission,Banking Arrangements,D43QK000044082,
